Workbook

Sheet Geral
A1: ANEXO IV PROPOSTA FINANCEIRA DE SERVIÇOS
A3: NOME DA CONSULTORA:
A5: PERÍMETRO(S): | F5: OBJETO: | I5: EDITAL:
A6: PPBR, PROD, PGLO E PJUS
A7: SERVIÇOS PAGOS A PREÇO UNITÁRIO
A8: CUSTOS DIRETOS | I8: =SUM(I10+I12+I25) -> 10449094.67
A9: MÃO-DE-OBRA | I9: =I10+I12 -> 5388404.47
A10: A - TOTAL DE SALÁRIO DA EQUIPE | I10: =SUM(I11:I11) -> 3152773.08
A11: A1 - TOTAL SALÁRIOS DA EQUIPE COM VÍNCULO (PFS-I) | I11: ='1. Adm. Ger. Exec.'!G10+'2.Serv. Vig'!H7+'3.Oper.'!Q14+'4.Manut. '!Q15 -> 3152773.08
A12: B - TOTAL DE ENCARGOS SOCIAIS | I12: =SUM(I13:I13) -> 2235631.39
A13: B1 - INCIDENTE SOBRE O ITEM A1 | I13: =0.7091*I11 -> 2235631.39
A14: OUTRAS DESPESAS
A15: C - MOBILIZAÇÃO, DESMOBILIZAÇÃO | I15: ='5. MobDesmob'!H56 -> 101373.66
A16: D - AQUISIÇÃO DE MÓVEIS E FERRAMENTAL | I16: ='6.Móv. escrit.'!E10+'7. Inst. e Ferram.'!F82 -> 297064.88
A17: E - AQUISIÇÃO DE MATERIAIS DE CONSUMO | I17: ='8.Mat. cons.'!F75 -> 27041.87
A18: F - ADMINISTRAÇÃO LOCAL | I18: ='9. Adm. Loc'!E17 -> 875823.12
A19: G - SERVIÇOS DE MANUTENÇÃO SUBESTAÇÕES | I19: ='10.Man. subest. '!F14 -> 129215.35
A20: H - SERVIÇOS DE MANUTENÇÃO CIVIL | I20: ='11.Man. Civ.'!F23 -> 191458
A21: I - CUSTO DE MATERAL E PEÇAS DE REPOSIÇÃO | I21: ='12.Peç Repos e Mat.'!F707 -> 1989814.64
A22: J1 - CUSTO DE VEÍCULOS e MOTOS | I22: =SUM('13. Orçam. de Forn. Veic. e Maq'!F5:F7) -> 469265.28
A23: J2 - CUSTO DE EQUIPAMENTOS | I23: =SUM('13. Orçam. de Forn. Veic. e Maq'!F8:F13) -> 851821.4
A24: K - CUSTO DE SERVIÇOS DE CONSULTORIA ESPECIALIZADA | I24: ='4.1 Cons. Esp.'!F4 -> 127812
A25: TOTAL DE OUTRAS DESPESAS | I25: =SUM(I15:I24) -> 5060690.2
A26: CUSTOS INDIRETOS | I26: =I27+I28+I30+I29 -> 3982189
A27: R - CUSTO DE ADMINISTRAÇÃO - (25,00% DO ITEM A) | I27: =0.25*I10 -> 788193.27
A28: S - REMUNERAÇÃO DA EMPRESA (LUCRO) - (10,00% DOS CUSTOS DIRETOS) | I28: =0.1*(I8+I27) -> 1123728.79
A29: T - DESPESAS FISCAIS - FORNECIMENTOS (10,19% = DF' DOS ITENS D+E+I+J1+R+S) | I29: =0.1019*(I16+I17+I21+I22+I27+I28) -> 478431.58
A30: U - DESPESAS FISCAIS - SERVIÇOS (16,62% = DF' DOS ITENS A+B+C+F+G+H+J2+K+R+S) | I30: =0.1662*(I10+I12+I15+I18+I19+I20++I23+I24+I27+I28) -> 1591835.36
A31: TOTAL DA PROPOSTA | I31: =I8+I26 -> 14431283.67
A32: NOME DO INFORMANTE: | H32: QUALIFICAÇÃO:
A34: ASSINATURA: | I34: DATA:
A36: OBSERVAÇÃO:
A37: ESTE ORÇAMENTO FOI CALCULADO COM OS SEGUINTES % MÁXIMOS DE ENCARGOS SOCIAIS E CUSTOS INDIRETOS:
A38: 1. ENCARGOS SOCIAIS DE AUTÔNOMOS = 20% SOBRE O SALÁRIO MENSAL
A39: 2. ENCARGOS SOCIAIS DA EQUIPE COM VÍNCULO = 70,91% SOBRE O SALÁRIO MENSAL
A40: 3. CUSTO DE ADMINISTRAÇÃO = 25,00% SOBRE O TOTAL DE SALÁRIOS DA EQUIPE (A1 + A2)
A41: 4. REMUNERAÇÃO DA EMPRESA (LUCRO) = 10,00% SOBRE OS ITENS DE CUSTOS DIRETOS + CUSTO DE ADMINISTRAÇÃO
A42: 5. DF = A SOMA DOS TRIBUTOS SOBRE SERVIÇOS (EX: ISS 5,00 + PIS 1,65 + COFINS 7,60 = 14,25%)
A43: DF' = { [ 1 / ( 1 - DF) ] - 1 } x 100
A44: DF' = { [ 1 / ( 1 - 0,1425 ) ] - 1 } x 100
A45: DF' = 0,1662 ou 16,62%
A46: 6. DF = A SOMA DOS TRIBUTOS FORNECIMENTOS (EX: ISS 0,00 + PIS 1,65 + COFINS 7,60 = 0,0925%)
A47: DF' = { [ 1 / ( 1 - DF) ] - 1 } x 100
A48: DF' = { [ 1 / ( 1 - 0,0925 ) ] - 1 } x 100
A49: DF' = 0,1019 ou 10,19%
A50: 7. NÃO foram incluídos os tributos IRPJ e CSLL, em cumprimento ao Acórdão nº 325/2007 – TCU – Plenário.

Sheet 1. Adm. Ger. Exec.
A1: PLANILHA DE ESTIMATIVA DE CUSTO ANUAL DE MÃO DE OBRA DE ADMINISTRAÇÃO DA GESTÃO DE OPERAÇÃO E MANUTENÇÃO DOS PERÍMETROS PPBR, PROD, PGLO E PJUS
A2: ADMINISTRAÇÃO E GERÊNCIA EXECUTIVA
A3: DESCRIÇÃO | C3: UNID. | D3: QUANT. | E3: =NA() ->  | F3: PREÇOS
F4: UNITÁRIO | G4: TOTAL
A5: Coordenador Geral | C5: mês | D5: 12 | E5: 700 | F5: =10800*1.1 -> 11880 | G5: =F5*D5 -> 142560
A6: Gerente Executivo | C6: mês | D6: 36 | E6: 700 | F6: 10800 | G6: =F6*D6 -> 388800
A7: Técnico Agrícola (Apoio à Produção) | C7: mês | D7: 84 | F7: =2711.1*1.3 -> 3524.43 | G7: =F7*D7 -> 296052.12
A8: Auxiliar Administrativo | C8: mês | D8: 48 | F8: 1550 | G8: =F8*D8 -> 74400
A9: Auxiliar de Serviços Gerais | C9: mês | D9: 48 | E9: 1000 | F9: 1320 | G9: =F9*D9 -> 63360
A10: TOTAL | G10: =SUM(G5:G9) -> 965172.12
A11: MEMÓRIA DESCRITIVA
A12: 1 - Os salários atribuídos às diferentes categorias profissionais tem como base o ACORDO COLETIVO DE TRABALHO 2021/2022 e CONVENÇÃO COLETIVA DE TRABALHO 2021/2022 com o SIND EMPREG EMPRESAS DE ASSES PER INF PESQ EST DA BAHIA; 2 - Para o Técnico Agrícola de Apoio à Produção incidirá Periculosidade de 30% por se tratar de profissional que utiliza motocicleta.

Sheet 2.Serv. Vig
A1: PLANILHA ESTIMATIVA DE CUSTOS E FORMAÇÃO DE PREÇOS DE SERVIÇO DE VIGIA
A3: Serviço de Vigia Desarmado nos Centros Administrativos (C.A.)
A4: DESCRIÇÃO | C4: UNID | D4: QUANT | E4: Salário (R$) | F4: Adicionais (R$) | G4: VALORES (R$)
G5: UNITÁRIO | H5: TOTAL
A6: Vigia do C.A. (2 unidades/Noturno) | C6: mês | D6: 96 | E6: ='2.1.Comp. Custo Serv Vig'!C4 -> 1320 | F6: ='2.1.Comp. Custo Serv Vig'!K4 -> 771.17 | G6: =SUM(E6:F6) -> 2091.17 | H6: =D6*G6 -> 200752.32
A7: TOTAL | H7: =SUM(H6:H6) -> 200752.32

Sheet 2.1.Comp. Custo Serv Vig
A1: Planilha de Composição de Custos e Formação de Preços Mensais de Vigia Desarmado dos Centros Administrativos (C.A.)
A2: DESCRIÇÃO | C2: Salario normativo | D2: Valor da Hora (R$) | E2: ADICIONAIS (R$) | K2: Total adicionais R$
E3: Adicional Noturno | F3: Ad. Noturno de 20% de 01 hora trabalhada | G3: Intervalo intrajornada (150% de 1,0 hora) | H3: Hora noturna reduzida | I3: Risco de vida | J3: Boa Permanência
A4: Vigia do C.A. (Noturno) | C4: 1320 | D4: =C4/220 -> 6 | E4: =D4*0.35*106.4 -> 223.44 | F4: =D4*0.2*15.2 -> 18.24 | G4: =(D4*1.5*15.2) -> 136.8 | H4: =D4*15.2 -> 91.2 | I4: =C4*0.18 -> 237.6 | J4: =C4*0.0484 -> 63.89 | K4: =SUM(E4:J4) -> 771.17
A5: MEMÓRIA DESCRITIVA:
A6: 1-O salário atribuído à categoria profissional, tem como base o ACORDO COLETIVO DE TRABALHO 2021/2022.
A7: 2 - Os adicionais estão em acordo com a definição da Acordo Coletivo de Trabalho 2021/2022, cujos percentuais são a seguir enumerados: adicional noturno:35% sobre hora trabalhada; adicional noturno de 20% de 01 hora trabalhada (referente ao horário de 05:00 as 06:00 h); adicional de 150% de 1,0 hora trabalhada referente ao intervalo intrajornada; risco de vida:18% do salário; adicional de boa permanência: 4,84% do salário.
A8: 3- Escala de trabalho: 12 x 36 horas de Segunda-feira a Domingo; foram consideradas 8,0(oito) horas com adicional noturno (de 22:00 as 5:00), 4,0(quatro) horas normais; o horário de 05:00 as 06:00 horas recebeu adicional noturno de 20%; foi adicionado 1,0(uma) hora noturna reduzida, por cada noite de trabalho efetivo a partir das 22:00 horas.

Sheet 3.Oper.
A1: PLANILHA DE ESTIMATIVA DE CUSTO DE MÂO DE OBRA DE OPERAÇÃO
A2: A - MÃO DE OBRA - OPERAÇÃO
E3: VALOR CONTRATUAL
A4: DESCRIÇÃO | C4: UNID. | D4: QUANT. (A) | E4: HORAS EXTRAS (HE) | N4: Salário R$ ( C) | O4: Adicionais (R$) (D) | P4: Valores (R$)
E5: Intrajornada c/ 100% | G5: Intrajornada c/ 70% | I5: Intrajornada c/ 60% | K5: Intrajornada c/ 50% | M5: (B)= (a)+(b)+ ( c)+(d) R$ | P5: UNITÁRIO(E)= (B)+(C)+(D) | Q5: TOTAL (F)=(A) x (E)
E6: Quant. | F6: R$ (a) | G6: Quant. | H6: R$ (b) | I6: Quant. | J6: R$ (c) | K6: Quant. | L6: R$ (d)
A7: Téc. Agrícola (Coordenador de Operação) | C7: un. | D7: 4 | E7: 0 | N7: ='3.1.CPU Oper.'!B4 -> 3141.22 | O7: ='3.1.CPU Oper.'!F4 -> 0 | P7: =SUM(M7+N7+O7) -> 3141.22 | Q7: =D7*P7 -> 12564.88
A8: Inspetor de Irrigação | C8: un. | D8: 5 | N8: ='3.1.CPU Oper.'!B5 -> 1212 | O8: ='3.1.CPU Oper.'!F5 -> 363.6 | P8: =SUM(M8+N8+O8) -> 1575.6 | Q8: 7878
A9: Op. de Casa de Bomba (noturno) | C9: un. | D9: 11 | E9: 0 | N9: ='3.1.CPU Oper.'!B6 -> 1320 | O9: ='3.1.CPU Oper.'!F6 -> 543.51 | P9: 1863.51 | Q9: 20498.61
A10: Operador de Bomba Sênior (diurno) | C10: un. | D10: 2 | E10: =((365/12)/2)-13.21 -> 2 | F10: =(N10/220)*2*E10 -> 29.64 | G10: 0 | H10: =N10/210*1.7*G10 -> 0 | I10: - | K10: =((365/12)/2)-E10 -> 13.2 | L10: =(N10/220)*1.5*K10 -> 146.7 | M10: =SUM(F10+H10+J10+L10) -> 176.34 | N10: ='3.1.CPU Oper.'!B7 -> 1630 | O10: ='3.1.CPU Oper.'!F7 -> 489 | P10: 2295.34 | Q10: 4590.68
A11: Operador de Bomba Sênior (noturno) | C11: un. | D11: 2 | E11: =((365/12)/2)-13.21 -> 2 | F11: =((N11/220)*2*E11)+((N11/220)*2*E11*0.2) -> 35.56 | G11: 0 | H11: 0 | I11: 0 | K11: =((365/12)/2)-E11 -> 13.2 | L11: =((N11/220)*1.5*K11)+((N11/220)*1.5*0.2*K11) -> 176.04 | M11: =SUM(F11+H11+J11+L11) -> 211.6 | N11: ='3.1.CPU Oper.'!B8 -> 1630 | O11: ='3.1.CPU Oper.'!F8 -> 606.6 | P11: 2448.2 | Q11: 4896.4
A12: Operador de Bomba Junior (diurno) | C12: un. | D12: 32 | E12: =((365/12)/2)-13.21 -> 2 | F12: =(N12/180)*2*E12 -> 29.33 | G12: 0 | H12: 0 | I12: 0 | K12: =((365/12)/2)-E12 -> 13.2 | L12: =((N12/220)*1.5*K12) -> 118.8 | M12: =SUM(F12+H12+J12+L12) -> 148.13 | N12: ='3.1.CPU Oper.'!B9 -> 1320 | O12: ='3.1.CPU Oper.'!F9 -> 396 | P12: 1864.13 | Q12: 59652.16
O13: Total Mensal | Q13: =SUM(Q7:Q12) -> 110080.73
A14: MEMÓRIA DESCRITIVA: | O14: TOTAL ANUAL | Q14: =12*Q13 -> 1320968.76
A15: 1 - Remuneração com adicional periculosidade de 30% e hora intra-jornada para os Operadores de Estação Bombeamento; para os operadores que trabalham à noite está incluso o adicional noturno.
A16: 2 - Operador de Casa de Bomba, tem adicional noturno de 20% sem hora intra-jornada, conforme jornada semanal descrita em Especificações Técnicas.

Sheet 3.1.CPU Oper.
A1: COMPOSIÇÃO DE PREÇO UNITÁRIO DE OPERAÇÃO
A2: DESCRIÇÃO | B2: Salário Categoria | C2: ADICIONAIS | G2: Jornada Mensal | H2: Horas com adicional noturno
C3: Periculosid. | D3: Insalubrid. | E3: Ad. Noturno | F3: Total | G3: Horas
A4: Técnico Agrícola (Coordenador de Operação) | B4: 3141.22 | C4: =B4*0 -> 0 | D4: - | E4: - | F4: =C4+0 -> 0 | G4: 220 | H4: -
A5: Inspetor de Irrigação | B5: 1212 | C5: =B5*0.3 -> 363.6 | D5: - | E5: - | F5: =C5+0 -> 363.6 | G5: 220 | H5: -
A6: Operador de casa de Bomba (Noturno) | B6: 1320 | C6: =B6*0.3 -> 396 | D6: - | E6: =H6*0.788 -> 147.51 | F6: =C6+E6 -> 543.51 | G6: 220 | H6: 187.2
A7: Operador de Bomba Sênior (Diurno) | B7: 1630 | C7: =B7*0.3 -> 489 | D7: - | E7: - | F7: =C7+0 -> 489 | G7: 180 | H7: -
A8: Operador de Bomba Sênior (Noturno) | B8: 1630 | C8: =B8*0.3 -> 489 | D8: - | E8: =H8*0.98 -> 117.6 | F8: =C8+E8 -> 606.6 | G8: 180 | H8: 120
A9: Operador de Bomba Junior | B9: 1320 | C9: =B9*0.3 -> 396 | D9: - | E9: - | F9: =C9+0 -> 396 | G9: 180 | H9: -
A10: MEMÓRIA DESCRITIVA:
A11: 1 - Os salários atribuídos às diferentes categorias profissionais tem como base o ACORDO COLETIVO DE TRABALHO 2021/2022 e CONVENÇÃO COLETIVA DE TRABALHO 2021/2022 com o SIND EMPREG EMPRESAS DE ASSES PER INF PESQ EST DA BAHIA; 2 - O Inspetor de Irrigação incidirá Periculosidade de 30% por se tratar de profissional que utiliza motocicleta.
A12: 4 - Horas com adicional noturno: a) Operador de Casa de Bomba: 39 horas x 4,2 semanas x 60 min /52,5 min=187,2 hs horas/mês; b) Operador de EBP - Noturno: 5,0 horas por turno x 60 min / 52,5 min x 15 turnos= 120 horas/ mês).

Sheet 4.Manut.
A1: PLANILHA DE ESTIMATIVA DE CUSTO MENSAL DE MÃO DE OBRA DE MANUTENÇÃO
A2: A - MÃO DE OBRA - MANUTENÇÃO
A3: VALOR CONTRATUAL
A4: DESCRIÇÃO | C4: UNID. | D4: QUANT. (A) | E4: HORAS EXTRAS (HE) | N4: Salário (C) R$ | O4: Adicionais (R$) (D) | P4: Valores (R$)
E5: 1 | G5: 0.7 | I5: 0.6 | K5: 0.5 | M5: (B)= (a)+(b)+ (c)+(d) | P5: UNITÁRIO (E)= (B)+( C)+(D) | Q5: TOTAL (F)=(A) x (E)
E6: Quant. | F6: R$ (a) | G6: Quant. | H6: R$ (b) | I6: Quant. | J6: R$ (c) | K6: Quant. | L6: R$ (d)
A7: Técnico Eletrotécnico | C7: un. | D7: 2 | E7: 10 | F7: =(N7/210*2)*E7 -> 325.71 | G7: 0 | H7: 0 | I7: 0 | J7: =(N7/210*1.6)*I7 -> 0 | K7: 10 | L7: =(N7/210*1.5)*K7 -> 244.29 | M7: =SUM(F7+H7+J7+L7) -> 570 | N7: ='4.1.CPU Manut.'!F4 -> 3420 | O7: ='4.1.CPU Manut.'!E4 -> 1026 | P7: =SUM(M7+N7+O7) -> 5016 | Q7: =D7*P7 -> 10032
A8: Auxiliar de Eletricista | C8: un. | D8: 3 | E8: 10 | F8: 131.43 | G8: 0 | H8: 0 | I8: 0 | J8: 0 | K8: 10 | L8: 98.57 | M8: 230 | N8: ='4.1.CPU Manut.'!F5 -> 1380 | O8: ='4.1.CPU Manut.'!E5 -> 414 | P8: =SUM(M8+N8+O8) -> 2024 | Q8: =D8*P8 -> 6072
A9: Mecânico | C9: un. | D9: 3 | E9: 10 | F9: 243.81 | G9: 0 | H9: 0 | I9: 0 | J9: 0 | K9: 10 | L9: 182.86 | M9: 426.67 | N9: ='4.1.CPU Manut.'!F6 -> 2560 | O9: ='4.1.CPU Manut.'!E6 -> 768 | P9: 3754.67 | Q9: 11264.01
A10: Auxiliar de Mecânico | C10: un. | D10: 3 | E10: 10 | F10: 131.43 | G10: 0 | H10: 0 | I10: 0 | J10: 0 | K10: 10 | L10: 98.57 | M10: 230 | N10: ='4.1.CPU Manut.'!F7 -> 1380 | O10: ='4.1.CPU Manut.'!E7 -> 414 | P10: 2024 | Q10: 6072
A11: Encanador | C11: un. | D11: 3 | E11: 10 | F11: 169.52 | G11: 0 | H11: 0 | I11: 0 | J11: 0 | K11: 10 | L11: 127.14 | M11: 296.66 | N11: ='4.1.CPU Manut.'!F8 -> 1780 | O11: ='4.1.CPU Manut.'!E8 -> 0 | P11: 2076.66 | Q11: 6229.98
A12: Auxilar de Encanador | C12: un. | D12: 6 | E12: 10 | F12: 131.43 | G12: 0 | H12: 0 | I12: 0 | J12: 0 | K12: 10 | L12: 98.57 | M12: 230 | N12: ='4.1.CPU Manut.'!F9 -> 1380 | O12: ='4.1.CPU Manut.'!E9 -> 0 | P12: 1610 | Q12: 9660
A13: Auxilar de Serv. Gerais | C13: un. | D13: 4 | E13: 10 | F13: 125.71 | G13: 0 | H13: 0 | I13: 0 | J13: 0 | K13: 10 | L13: 94.29 | M13: 220 | N13: ='4.1.CPU Manut.'!F10 -> 1320 | O13: ='4.1.CPU Manut.'!E10 -> 0 | P13: 1540 | Q13: 6160
O14: Total Mensal | Q14: =SUM(Q7:Q13) -> 55489.99
O15: TOTAL ANUAL | Q15: =12*Q14 -> 665879.88

Sheet 4.1.CPU Manut.
A1: COMPOSIÇÃO DE PREÇO UNITÁRIO DE MANUTENÇÃO
A2: DESCRIÇÃO | B2: ADICIONAIS | F2: Salário Contratual | G2: Jornada
B3: Periculosid. | C3: Insalubrid. | D3: Ad. Noturno | E3: Total
A4: Eletrotécnico | B4: =F4*0.3 -> 1026 | C4: =678*0 -> 0 | D4: =F4*0 -> 0 | E4: =SUM(B4:D4) -> 1026 | F4: 3420 | G4: 220 horas
A5: Auxiliar de Eletricista | B5: =F5*0.3 -> 414 | C5: 0 | D5: 0 | E5: =SUM(B5:D5) -> 414 | F5: 1380 | G5: 220 horas
A6: Mecânico | B6: =F6*0.3 -> 768 | C6: 0 | D6: 0 | E6: =SUM(B6:D6) -> 768 | F6: 2560 | G6: 220 horas
A7: Auxiliar de Mecânico | B7: =F7*0.3 -> 414 | C7: 0 | D7: 0 | E7: =SUM(B7:D7) -> 414 | F7: 1380 | G7: 220 horas
A8: Encanador | B8: =F8*0 -> 0 | C8: 0 | D8: 0 | E8: =F8*0 -> 0 | F8: 1780 | G8: 220 horas
A9: Auxilar de Encanador | B9: =F9*0 -> 0 | C9: 0 | D9: 0 | E9: =F9*0 -> 0 | F9: 1380 | G9: 220 horas
A10: Auxilar de Serv. Gerais | B10: =F10*0 -> 0 | C10: 0 | D10: 0 | E10: =F10*0 -> 0 | F10: 1320 | G10: 220 horas
A11: MEMÓRIA DESCRITIVA:
A12: 1 - Os salários atribuídos às diferentes categorias profissionais tem como base o ACORDO COLETIVO DE TRABALHO 2021/2022 e CONVENÇÃO COLETIVA DE TRABALHO 2021/2022 com o SIND EMPREG EMPRESAS DE ASSES PER INF PESQ EST DA BAHIA;
A13: 2- Remuneração com adicional de periculosidade de 30% para Eletrotécnico, Eletricista, Auxiliar de Eletricista, Técnico em Mecânica, Mecânico, Auxiliar de Mecânico.

Sheet 4.1 Cons. Esp.
A1: PLANILHA DE ESTIMATIVA DE CUSTO ANUAL DE CONSULTORIA ESPECIALIZADA PARA OS PERÍMETROS PPBR, PROD, PGLO E PJUS
A2: DESCRIÇÃO | C2: UNID. | D2: QUANT. | E2: PREÇOS
E3: UNITÁRIO | F3: TOTAL
A4: Engenheiro Consultor* (SINAPI 90778) | C4: hora | D4: 1200 | E4: 106.51 | F4: =E4*D4 -> 127812

Sheet 5. MobDesmob
A1: CODEVASF | B1: ITEM 1.1 | C1: COMPOSIÇÃO DE PREÇO UNITÁRIO
A2: OPERAÇÃO E MANUT. DOS PERÍMETROS PPBR, PROD, PGLO E PJUS | G2: DATA: Out/2021
A3: SERVIÇO : Mobilização | G3: UNIDADE: | H3: un
A4: EQUIPAMENTO
A5: DISCRIMINAÇÃO | B5: UNIDADE | C5: QUANT. | D5: PROD | E5: IMPROD | F5: P.UNIT. PROD | G5: P.UNIT. IMPR | H5: P.TOTAL
A7: 5824 (SINAPI) - Caminhão carroceria fixa | B7: h | C7: =144*2.03 -> 292.32 | D7: 1 | F7: 162.5 | H7: =C7*D7*F7+C7*E7*G7 -> 47502
A9: SUB-TOTAL | H9: =SUM(H6:H7) -> 47502
A10: MATERIAL
A11: DISCRIMINAÇÃO | B11: UNIDADE | C11: QUANT. | G11: P.UNIT. | H11: P.TOTAL
H12: =C12*G12 -> 0
H13: =C13*G13 -> 0
A14: SUB-TOTAL | H14: =SUM(H12:H13) -> 0
A15: SERVIÇOS - COMPOSIÇÕES AUXILIARES
A16: DISCRIMINAÇÃO | B16: UNIDADE | C16: QUANT. | G16: P.UNIT. | H16: P.TOTAL
H17: =C17*G17 -> 0
A18: SUB-TOTAL | H18: =SUM(H17:H17) -> 0
A19: MÃO DE OBRA
A20: DISCRIMINAÇÃO | B20: UNIDADE | C20: QUANT. | G20: P.UNIT. | H20: P.TOTAL
A21: 88316(SINAPI) - Servente | B21: h | C21: =192*2.03 -> 389.76 | G21: 18.79 | H21: =C21*G21 -> 7323.59
A23: SUB-TOTAL | H23: =H21+H22 -> 7323.59
C24: CUSTO | H24: =H23+H18+H14+H9 -> 54825.59
A25: PRODUÇÃO DA EQUIPE | B25: 1 | E25: CUSTO UNITÁRIO DO SERVIÇO | H25: =H24/B25 -> 54825.59
A26: BDI | C26: 0 | H26: =ROUND((H25*C26),2) -> 0
A27: TOTAL DO SERVIÇO - R$ | H27: =ROUND((H25+H26),2) -> 54825.59
A28: CODEVASF | B28: ITEM 1.2 | C28: COMPOSIÇÃO DE PREÇO UNITÁRIO
A29: OPERAÇÃO E MANUT. DOS PERÍMETROS PPBR, PROD, PGLO E PJUS | G29: DATA: Out/2021
A30: SERVIÇO : Desmobilização | G30: UNIDADE: | H30: un
A31: EQUIPAMENTO
A32: DISCRIMINAÇÃO | B32: UNIDADE | C32: QUANT. | D32: PROD | E32: IMPROD | F32: P.UNIT. PROD | G32: P.UNIT. IMPR | H32: P.TOTAL
A34: 5824 (SINAPI) Caminhão carroceria fixa | B34: h | C34: =108*2.03 -> 219.24 | D34: 1 | F34: 162.5 | H34: =C34*D34*F34+C34*E34*G34 -> 35626.5
A36: SUB-TOTAL | H36: =SUM(H33:H34) -> 35626.5
A37: MATERIAL
A38: DISCRIMINAÇÃO | B38: UNIDADE | C38: QUANT. | G38: P.UNIT. | H38: P.TOTAL
H39: =C39*G39 -> 0
H40: =C40*G40 -> 0
A41: SUB-TOTAL | H41: =SUM(H39:H40) -> 0
A42: SERVIÇOS - COMPOSIÇÕES AUXILIARES
A43: DISCRIMINAÇÃO | B43: UNIDADE | C43: QUANT. | G43: P.UNIT. | H43: P.TOTAL
A44: 97622 (SINAPI) Demolição de alvenaria | B44: m3 | C44: =72*2.03 -> 146.16 | G44: 49.67 | H44: =C44*G44 -> 7259.77
A45: SUB-TOTAL | H45: =SUM(H44:H44) -> 7259.77
A46: MÃO DE OBRA
A47: DISCRIMINAÇÃO | B47: UNIDADE | C47: QUANT. | G47: P.UNIT. | H47: P.TOTAL
A48: 88316(SINAPI) - Servente | B48: h | C48: =96*2.03 -> 194.88 | G48: 18.79 | H48: =C48*G48 -> 3661.8
A50: SUB-TOTAL | H50: =H48+H49 -> 3661.8
C51: CUSTO | H51: =H50+H45+H41+H36 -> 46548.07
A52: PRODUÇÃO DA EQUIPE | B52: 1 | E52: CUSTO UNITÁRIO DO SERVIÇO | H52: =H51/B52 -> 46548.07
A53: BDI | C53: 0 | H53: =ROUND((H52*C53),2) -> 0
A54: TOTAL DO SERVIÇO - R$ | H54: =ROUND((H52+H53),2) -> 46548.07
G56: TOTAL | H56: =H54+H27 -> 101373.66

Sheet 6.Móv. escrit.
A1: MÓVEIS, MÁQUINAS E EQUIPAMENTOS DE ESCRITÓRIO
A3: ITEM | B3: DESCRIÇÃO | C3: QUANT. | D3: VALOR | E3: VALOR
D4: UNIT. (R$) | E4: TOTAL (R$)
A5: 1 | B5: Bebedouro elétrico de coluna p/ garrafão 20 litros | C5: 4 | D5: 567.15 | E5: =C5*D5 -> 2268.6
A6: 2 | B6: Computador Desktop completo Intel Core i7 8GB SSD 240GB Monitor LED 19.5" | C6: 8 | D6: 2837.99 | E6: =C6*D6 -> 22703.92
A7: 3 | B7: Notebook Intel Core I7, 8 GB SSD | C7: 1 | D7: 3869.1 | E7: =C7*D7 -> 3869.1
A8: 4 | B8: Notebook Intel Core I7, 8 GB SSD (Fiscalização) | C8: 1 | D8: 3869.1 | E8: =C8*D8 -> 3869.1
A9: 5 | B9: Kit Vigilância CFTV, câmeras infra DVR 8 canais, acesso remoto | C9: 16 | D9: 1662.52 | E9: =C9*D9 -> 26600.32
A10: TOTAL | E10: =SUM(E5:E9) -> 59311.04
A11: Obs. Todos os itens relacionados serão, após a colocação nos Perímetros, transferidos para o patrimônio da Codevasf.

Sheet 7. Inst. e Ferram.
A1: VALOR ANUAL DE FERRAMENTAL, INSTRUMENTAÇÃO E EQUIPAMENTOS DE OFICINA
A3: ITEM | B3: DESCRIÇÃO | C3: UNID. | D3: QUANT. | E3: PREÇO R$
E4: UNIT. | F4: TOTAL
A5: 1 | B5: Alicate amperímetro 1000 amperes AC/DC | C5: un | D5: 4 | E5: 289.9 | F5: =D5*E5 -> 1159.6
A6: 2 | B6: Aferidor de manômetro de 0 a 150 bar | C6: un | D6: 1 | E6: 1344.37 | F6: 1344.37
A7: 3 | B7: Alavanca | C7: un | D7: 4 | E7: 132.48 | F7: 529.92
A8: 5 | B8: Alicate de pressão | C8: un | D8: 4 | E8: 32.25 | F8: 129
A9: 6 | B9: Aquecedor indutivo TIH 030M/230V | C9: un | D9: 2 | E9: 12039.55 | F9: 24079.1
A10: 7 | B10: Aspirador de pó capac. 20 l | C10: un | D10: 4 | E10: 368.53 | F10: 1474.12
A11: 8 | B11: Bainha para tesoura de poda | C11: un | D11: 4 | E11: 20.9 | F11: 83.6
A12: 9 | B12: Balde de 12L | C12: un | D12: 12 | E12: 5.5 | F12: 66
A13: 10 | B13: Bancada com injetor de corrente | C13: un | D13: 4 | E13: 723.7 | F13: 2894.8
A14: 11 | B14: Bancada para oficina - 1,2 x 2,5 m | C14: un | D14: 4 | E14: 1216.47 | F14: 4865.88
A15: 12 | B15: Base Magnética p/ relógio comparador | C15: un | D15: 4 | E15: 155.99 | F15: 623.96
A16: 13 | B16: Bastão de Manobra - 6 m | C16: un | D16: 4 | E16: 548.5 | F16: 2194
A17: 14 | B17: Bomba com motor a gasolina, auto-escorvante, 3,5 hp | C17: un | D17: 4 | E17: 1338.89 | F17: 5355.56
A18: 15 | B18: Bomba de graxa 5kg | C18: un | D18: 4 | E18: 187.88 | F18: 751.52
A19: 16 | B19: Cabo para chibanca e picareta | C19: un | D19: 12 | E19: 10.99 | F19: 131.88
A20: 17 | B20: Cabo para enxada | C20: un | D20: 12 | E20: 13.49 | F20: 161.88
A21: 18 | B21: Cabo para rastelo | C21: un | D21: 12 | E21: 14.72 | F21: 176.64
A22: 19 | B22: Calibrador de folgas de 0,03 mm - 0,50 mm | C22: un | D22: 4 | E22: 45.9 | F22: 183.6
A23: 20 | B23: Canivete para enxertia | C23: un | D23: 8 | E23: 43.51 | F23: 348.08
A24: 21 | B24: Carro de Mão | C24: un | D24: 4 | E24: 150 | F24: 600
A25: 22 | B25: Chibanca | C25: un | D25: 4 | E25: 39.89 | F25: 159.56
A26: 23 | B26: Compressor de ar de 100 l, - 9,30 Kgf / cm² | C26: un | D26: 3 | E26: 2000 | F26: 6000
A27: 24 | B27: Condutivímetro | C27: un | D27: 4 | E27: 341 | F27: 1364
A28: 25 | B28: Conjunto de chaves básicas para eletricista | C28: un | D28: 4 | E28: 525.9 | F28: 2103.6
A29: 26 | B29: Conjunto de chaves básicas para mecânico | C29: un | D29: 4 | E29: 138 | F29: 552
A30: 27 | B30: Conjunto ferramentas básicas para encanador | C30: un | D30: 4 | E30: 422.9 | F30: 1691.6
A31: 28 | B31: Eletrodo de CuSO4 (Proteção Catódica) | C31: un | D31: 4 | E31: 24.76 | F31: 99.04
A32: 29 | B32: Enxada | C32: un | D32: 8 | E32: 24 | F32: 192
A33: 32 | B33: Escada metálica de 05 degraus | C33: un | D33: 4 | E33: 145.83 | F33: 583.32
A34: 33 | B34: Escada metálica de 12 degraus | C34: un | D34: 4 | E34: 390.51 | F34: 1562.04
A35: 34 | B35: Escada para eletricista | C35: un | D35: 4 | E35: 214.94 | F35: 859.76
A36: 35 | B36: Estetoscópio Kent | C36: un | D36: 4 | E36: 23.12 | F36: 92.48
A37: 36 | B37: Foice | C37: un | D37: 4 | E37: 15 | F37: 60
A38: 37 | B38: Fumigador p/ apicultura | C38: un | D38: 4 | E38: 120 | F38: 480
A39: 38 | B39: Furadeira de bancada - Prof.110mm - 1/2 cv - mandril 5/8" | C39: un | D39: 4 | E39: 1029 | F39: 4116
A40: 39 | B40: Furadeira Manual 650W 1050-1450 RPM 220V Ø 13mm | C40: un | D40: 4 | E40: 230 | F40: 920
A41: 40 | B41: Indutor elétr. para aquecimento de rolamentos (JM 50D) | C41: un | D41: 2 | E41: 14149.4 | F41: =D41*E41 -> 28298.8
A42: 41 | B42: Kit Maçarico | C42: un | D42: 2 | E42: 2799.9 | F42: 5599.8
A43: 42 | B43: Lixadeira Manual p/ disco de 7" | C43: un | D43: 4 | E43: 385 | F43: 1540
A44: 43 | B44: Lupa de bolso, 25 x aumento | C44: un | D44: 8 | E44: 22.41 | F44: =D44*E44 -> 179.28
A45: 44 | B45: Macaco tipo elevador capacidade de 2 t | C45: un | D45: 4 | E45: 1169.9 | F45: 4679.6
A46: 45 | B46: 00037459 (SINAPI) MANGUEIRA CRISTAL, LISA, PVC TRANSPARENTE, 3/4" X 2 MM | C46: m | D46: 140 | E46: 6.53 | F46: =D46*E46 -> 914.2
A47: 46 | B47: Máquina de solda de 250A - Com Kit | C47: un | D47: 4 | E47: 1900.79 | F47: 7603.16
A48: 47 | B48: Marreta 2Kg | C48: un | D48: 4 | E48: 29.89 | F48: 119.56
A49: 48 | B49: Medidor/Analisador de vibrações, visor cristal liquido 2 linhas x 8 caracteres, leitura simultânea, velocidade e aceleração, acelerômetro piezoelétrico, bateria de cádimo recaregável, saída para interface FFP e PC, sintonia de frequencia, software aplicativo para instalação em PC. | C49: un | D49: 2 | E49: 4608.12 | F49: 9216.24
A50: 49 | B50: Megômetro eletrônico Tensão de teste até 5 kV | C50: un | D50: 3 | E50: 3174 | F50: 9522
A51: 50 | B51: Micrômetro externo 0 - 100 mm | C51: un | D51: 3 | E51: 1284.01 | F51: 3852.03
A52: 51 | B52: Micrômetro interno 50 - 800mm | C52: un | D52: 2 | E52: 3587.99 | F52: 7175.98
A53: 52 | B53: Morsa p/ bancada nº 08 | C53: un | D53: 4 | E53: 324 | F53: 1296
A54: 53 | B54: Motoesmeril de 1cv - 3.500 RPM | C54: un | D54: 4 | E54: 1119 | F54: 4476
A55: 54 | B55: Multiteste escala de 0 - 1000 VCA ( 79/26 ) Cat. 3 | C55: un | D55: 4 | E55: 321.7 | F55: 1286.8
A56: 55 | B56: Navegador GPS | C56: un | D56: 4 | E56: 1240 | F56: 4960
A57: 56 | B57: Nível c/ bolha ajustável de inclinação, bolha fixa e prumo - 250 mm | C57: un | D57: 2 | E57: 1283.89 | F57: 2567.78
A58: 57 | B58: Pá | C58: un | D58: 4 | E58: 13.5 | F58: 54
A59: 58 | B59: Pá de bico com cabo | C59: un | D59: 8 | E59: 15 | F59: 120
A60: 59 | B60: Paquímetro Digital 0-150mm/0,01mm | C60: un | D60: 3 | E60: 161 | F60: 483
A61: 60 | B61: Paquímetro universal 0 - 650mm/0,02mm | C61: un | D61: 2 | E61: 133.12 | F61: 266.24
A62: 61 | B62: Picareta | C62: un | D62: 8 | E62: 39 | F62: 312
A63: 62 | B63: Pistolas P/ Pintura | C63: un | D63: 4 | E63: 22 | F63: 88
A64: 63 | B64: Pulverizador costal 20 l | C64: un | D64: 4 | E64: 155 | F64: 620
A65: 64 | B65: Guindaste girafa de 2 t para oficina | C65: un | D65: 4 | E65: 3619.74 | F65: 14478.96
A66: 65 | B66: Rádio Estação repetidora | C66: un | D66: 2 | E66: 6700 | F66: 13400
A67: 66 | B67: Rádio retransmissor (base fixa) | C67: un | D67: 4 | E67: 1699.99 | F67: 6799.96
A68: 67 | B68: Rádio retransmissor (base móvel) | C68: un | D68: 4 | E68: 1380 | F68: 5520
A69: 68 | B69: Rádio retransmissor (portátil) PRO-3150 ou equivalente | C69: un | D69: 8 | E69: 2270 | F69: 18160
A70: 69 | B70: Rastelo | C70: un | D70: 8 | E70: 11.67 | F70: 93.36
A71: 70 | B71: Rastelo (ancinho)12 dentes | C71: un | D71: 8 | E71: 16.99 | F71: 135.92
A72: 71 | B72: Relógio Comparador 0-10/0,01mm | C72: un | D72: 2 | E72: 112.9 | F72: 225.8
A73: 72 | B73: Serrote de poda, lâmina de 12 " | C73: un | D73: 8 | E73: 22.5 | F73: 180
A74: 73 | B74: Tacômetro digital 0,1 - 1,0 RPM DT - 2234 A ou equivalente | C74: un | D74: 4 | E74: 1296.75 | F74: 5187
A75: 74 | B75: Talha capacidade 3 Ton. | C75: un | D75: 2 | E75: 966 | F75: 1932
A76: 75 | B76: Tensiômetro (Conjunto) com vacuômetro de cápsula porosa em cerâmica e vacuômetro com caixa de aço inoxidável | C76: un | D76: 4 | E76: 122.4 | F76: 489.6
A77: 76 | B77: Termômetro mira laser escala de -20 a 500ºc | C77: un | D77: 4 | E77: 57.99 | F77: 231.96
A78: 77 | B78: Tesoura de poda profissional com bainha | C78: un | D78: 8 | E78: 70.9 | F78: 567.2
A79: 79 | B79: Torquimetro c/ relógio 4506 - R350 0 047 260 OF ou equivalente | C79: un | D79: 3 | E79: 1004.8 | F79: 3014.4
A80: 80 | B80: Torquímetro de estalo 50 - 400 Nm | C80: un | D80: 3 | E80: 1288.9 | F80: 3866.7
A81: 81 | B81: Trado | C81: un | D81: 4 | E81: 62.9 | F81: 251.6
A82: TOTAL | F82: =SUM(F5:F81) -> 237753.84
D83: Valor Anual | F83: =F82 -> 237753.84

Sheet 8.Mat. cons.
A1: PLANILHA DE ORÇAMENTO ANUAL DE MATERIAIS DE CONSUMO
A3: ITEM | B3: DESCRIÇÃO | C3: UNID. | D3: QUANT. | E3: PREÇO R$
E4: UNIT. | F4: TOTAL
A5: 1 | B5: Açúcar | C5: kg | D5: 400 | E5: 2.97 | F5: =D5*E5 -> 1188
A6: 2 | B6: Água Mineral (20 litros) | C6: garrafão | D6: 400 | E6: 4.41 | F6: 1764
A7: 3 | B7: Água Sanitária 1000 ml | C7: un | D7: 360 | E7: 0.95 | F7: 342
A8: 4 | B8: Álcool 500ml | C8: un | D8: 140 | E8: 3.84 | F8: 537.6
A9: 5 | B9: Bateria de 1,5Vcc (pequena) | C9: un | D9: 48 | E9: 0.44 | F9: 21.12
A10: 6 | B10: Bom Ar | C10: un | D10: 96 | E10: 6.4 | F10: 614.4
A11: 7 | B11: Borracha | C11: un | D11: 40 | E11: 0.13 | F11: 5.2
A12: 8 | B12: Caderno de anotações | C12: un | D12: 24 | E12: 1 | F12: 24
A13: 9 | B13: Café torrado e moído (500g) | C13: um | D13: 400 | E13: 5 | F13: 2000
A14: 10 | B14: Caneta esfereográfica Azul | C14: un | D14: 200 | E14: 23 | F14: 4600
A15: 11 | B15: Capa para encadernação Azul | C15: un | D15: 300 | E15: 0.35 | F15: 105
A16: 12 | B16: Capa para encadernação Transparente | C16: un | D16: 300 | E16: 0.35 | F16: 105
A17: 13 | B17: Cartucho colorido para impressora | C17: un | D17: 60 | E17: 41.74 | F17: 2504.4
A18: 14 | B18: Cartucho preto para impressora | C18: un | D18: 60 | E18: 41.74 | F18: 2504.4
A19: 15 | B19: CD RW | C19: un | D19: 120 | E19: 2.9 | F19: 348
A20: 16 | B20: Cera líquida 1000 ml | C20: un | D20: 80 | E20: 3.2 | F20: 256
A21: 17 | B21: Cesto de lixo | C21: un | D21: 40 | E21: 1.79 | F21: 71.6
A22: 18 | B22: Classificador elástico | C22: un | D22: 73 | E22: 0.79 | F22: 57.67
A23: 19 | B23: Clips nº 00 | C23: cx | D23: 16 | E23: 0.24 | F23: 3.84
A24: 20 | B24: Clips nº 02 | C24: cx | D24: 18 | E24: 0.6 | F24: 10.8
A25: 21 | B25: Clips nº 04 | C25: cx | D25: 12 | E25: 0.9 | F25: 10.8
A26: 22 | B26: Clips nº 06 | C26: cx | D26: 12 | E26: 1 | F26: 12
A27: 23 | B27: Clips nº 08 | C27: cx | D27: 12 | E27: 2.23 | F27: 26.76
A28: 24 | B28: Cola bastão | C28: un | D28: 20 | E28: 0.48 | F28: 9.6
A29: 25 | B29: Cola do tipo líquida | C29: un | D29: 20 | E29: 0.05 | F29: 1
A30: 26 | B30: Copo descartável 200 ml | C30: Cento | D30: 1440 | E30: 1.2 | F30: 1728
A31: 27 | B31: Copo descartável 50 ml | C31: Cento | D31: 1440 | E31: 0.9 | F31: 1296
A32: 28 | B32: Corretivo a base d'agua 18 ml | C32: un | D32: 24 | E32: 0.78 | F32: 18.72
A33: 29 | B33: Desinfetante | C33: un | D33: 200 | E33: 1.3 | F33: 260
A34: 30 | B34: Detergente 500ml | C34: un | D34: 120 | E34: 0.99 | F34: 118.8
A35: 31 | B35: Envelope de papel tamanho grande - 40 cm | C35: un | D35: 240 | E35: 0.21 | F35: 50.4
A36: 32 | B36: Envelope de papel tamanho médio - 35 cm | C36: un | D36: 240 | E36: 0.11 | F36: 26.4
A37: 33 | B37: Envelope de papel tamanho pequeno - 30 cm | C37: un | D37: 240 | E37: 0.11 | F37: 26.4
A38: 34 | B38: Espanador | C38: un | D38: 20 | E38: 8.5 | F38: 170
A39: 35 | B39: Espiral 7mm | C39: un | D39: 200 | E39: 6.5 | F39: 1300
A40: 36 | B40: Espiral 9mm | C40: un | D40: 100 | E40: 0.2 | F40: 20
A41: 37 | B41: Esponja de prato | C41: un | D41: 120 | E41: 0.2 | F41: 24
A42: 38 | B42: Estilete | C42: un | D42: 20 | E42: 0.7 | F42: 14
A43: 39 | B43: Fita adesiva (estreita tipo durex) | C43: un | D43: 20 | E43: 0.42 | F43: 8.4
A44: 40 | B44: Fita adesiva transparente (larga) | C44: un | D44: 30 | E44: 2.1 | F44: 63
A45: 41 | B45: Fita Crepe branca 45mm x 50m | C45: un | D45: 40 | E45: 3.1 | F45: 124
A46: 42 | B46: Flanela | C46: un | D46: 80 | E46: 1.2 | F46: 96
A47: 43 | B47: Grampo 26/6 | C47: cx | D47: 24 | E47: 3.15 | F47: 75.6
A48: 44 | B48: Grampo tipo trilho | C48: cx | D48: 20 | E48: 3.91 | F48: 78.2
A49: 45 | B49: Lápis grafite | C49: dz | D49: 16 | E49: 0.13 | F49: 2.08
A50: 46 | B50: Livro de ata com 100 páginas numeradas | C50: un | D50: 2 | E50: 8.99 | F50: 17.98
A51: 47 | B51: Livro de ocorrência 50 páginas (três vias) | C51: un | D51: 46 | E51: 0.39 | F51: 17.94
A52: 48 | B52: Marca texto | C52: un | D52: 20 | E52: 0.75 | F52: 15
A53: 49 | B53: Mina grafite 05mm c 12 unidades | C53: um | D53: 16 | E53: 0.7 | F53: 11.2
A54: 50 | B54: Mina grafite 07mm c 12 unidades | C54: cx | D54: 16 | E54: 0.75 | F54: 12
A55: 51 | B55: Multi inseticida | C55: un | D55: 24 | E55: 5.3 | F55: 127.2
A56: 52 | B56: Pacote de lã de aço 60 g | C56: un | D56: 200 | E56: 0.52 | F56: 104
A57: 53 | B57: Pano de chão | C57: un | D57: 300 | E57: 1.45 | F57: 435
A58: 54 | B58: Pano de prato | C58: un | D58: 60 | E58: 1 | F58: 60
A59: 55 | B59: Papel toalha | C59: un | D59: 200 | E59: 3.29 | F59: 658
A60: 56 | B60: Pasta arquivo | C60: un | D60: 80 | E60: 0.8 | F60: 64
A61: 57 | B61: Pasta suspensa | C61: un | D61: 160 | E61: 1.72 | F61: 275.2
A62: 58 | B62: Pastilha sanitária | C62: un | D62: 360 | E62: 1 | F62: 360
A63: 59 | B63: Polidor de alumínio | C63: un | D63: 72 | E63: 1.19 | F63: 85.68
A64: 60 | B64: Refil para filtro de bebedouro industrial | C64: un | D64: 6 | E64: 25.9 | F64: 155.4
A65: 61 | B65: Régua 30 cm | C65: un | D65: 9 | E65: 0.48 | F65: 4.32
A66: 62 | B66: Resma papel A4 | C66: resma | D66: 80 | E66: 8 | F66: 640
A67: 63 | B67: Rolo de papel higiênico | C67: rolo | D67: 2400 | E67: 0.37 | F67: 888
A68: 64 | B68: Sabão em pó 500g | C68: un | D68: 314 | E68: 1.14 | F68: 357.96
A69: 65 | B69: Sabonetes 90 g | C69: un | D69: 100 | E69: 0.2 | F69: 20
A70: 66 | B70: Saco de lixo 30 kg | C70: pç | D70: 240 | E70: 0.13 | F70: 31.2
A71: 67 | B71: Saco de lixo 100 kg | C71: pç | D71: 120 | E71: 0.22 | F71: 26.4
A72: 68 | B72: Super Bond | C72: un | D72: 24 | E72: 0.73 | F72: 17.52
A73: 69 | B73: Tinta para carimbo | C73: un | D73: 12 | E73: 2.89 | F73: 34.68
F74: =SUM(F5:F73) -> 27041.87
D75: Valor Anual | F75: =F74 -> 27041.87
F86: =12*24 -> 288

Sheet 9. Adm. Loc
A1: PLANILHA ESTIMATIVA DE CUSTOS DE ADMINISTRAÇÃO LOCAL
A2: CUSTOS DE ADMINISTRAÇÃO LOCAL: VIAGENS/ MÊS
A3: Descrição | B3: UNID | C3: QUANT. | D3: VALOR UNIT. | E3: VALOR TOTAL R$
A4: Diárias | B4: Unid | C4: 4 | D4: 120 | E4: =C4*D4 -> 480
A5: Sub-total | E5: =SUM(E4:E4) -> 480
A6: CUSTOS DE ADMINISTRAÇÃO LOCAL: ESCRITÓRIO/MÊS
A7: Descrição | B7: UNID | C7: QUANT. | D7: VALOR UNIT. | E7: VALOR TOTAL R$
A8: Telefone celular | B8: un. | C8: 1 | D8: =100*4*1.2503 -> 500.12 | E8: =C8*D8 -> 500.12
A9: Internet | B9: un. | C9: 1 | D9: =150*4*1.2503 -> 750.18 | E9: =C9*D9 -> 750.18
A10: Sub-total | E10: =SUM(E8:E9) -> 1250.3
A11: CUSTOS DE ADMINISTRAÇÃO LOCAL: VALE ALIMENTAÇÃO E EXAMES ADMISSIONAIS/MÊS
A12: Descrição | B12: UNID | C12: QUANT. | D12: VALOR UNIT. | E12: VALOR TOTAL R$
A13: Vale Alimentação | B13: un. | C13: =C14/2 -> 107 | D13: 665.5 | E13: =C13*D13 -> 71208.5
A14: Exames Admissionais, Demissionais e períodicos | B14: un. | C14: ='14.Quant Pess.'!G30*2 -> 214 | D14: 31.26 | E14: =(C14*D14)/12 -> 557.47
A15: Sub-total | E15: =E14/12+E13 -> 71254.96
A16: TOTAL GERAL MENSAL | E16: =E5+E10+E15 -> 72985.26
A17: TOTAL Anual | C17: 12 | D17: - | E17: =C17*E16 -> 875823.12

Sheet 10.Man. subest.
A1: PLANILHA ESTIMATIVA SEMESTRAL DE MANUTENÇÃO DAS SUBESTAÇÕES ELÉTRICAS
A2: ITEM | B2: DESCRIÇÃO | C2: UNID | D2: QUANT. | E2: VALOR R$ (C/ BDI)
E3: UNIT. | F3: TOTAL
A4: 1 | B4: Coleta, análise físico-química e cromatográfica do óleo dos transformadores de 5000kVA | C4: unid. | D4: 14 | E4: ='10.1.CPU subest.'!H20 -> 189.1 | F4: =ROUND(E4*D4,2) -> 2647.4
A5: 2 | B5: Manutenção de disjuntores a vácuo | C5: unid. | D5: 34 | E5: ='10.1.CPU subest.'!H33 -> 893.28 | F5: 30371.52
A6: 3 | B6: Manutenção de disjuntores PVO (pequeno volume de óleo) | C6: unid. | D6: 12 | E6: ='10.1.CPU subest.'!H64 -> 723.71 | F6: 8684.52
A7: 4 | B7: Manutenção periódica de transformadores monofásicos de 5 kVA - daS EB's/RC | C7: unid. | D7: 24 | E7: ='10.1.CPU subest.'!H94 -> 1059.49 | F7: 25427.76
A8: 5 | B8: Manutenção periódica de transformadores da de 45 kVA - da EBP e EB's/RC | C8: unid. | D8: 5 | E8: ='10.1.CPU subest.'!H94 -> 1059.49 | F8: 5297.45
A9: 6 | B9: Manutenção periódica de transformadores da de 75 kVA - das EB's/RC | C9: unid. | D9: 20 | E9: ='10.1.CPU subest.'!H94 -> 1059.49 | F9: 21189.8
A10: 7 | B10: Manutenção periódica de transformadores da de 5.000 kVA - da EBP | C10: unid. | D10: 9 | E10: ='10.1.CPU subest.'!H124 -> 1753.68 | F10: 15783.12
A11: 8 | B11: Recondicionamento completo de transformadores de 5 kVA | C11: unid. | D11: 2 | E11: ='10.1.CPU subest.'!H144 -> 582.76 | F11: 1165.52
A12: 9 | B12: Recondicionamento completo de transformadores de 45 kVA | C12: unid. | D12: 1 | E12: ='10.1.CPU subest.'!H154 -> 1165.52 | F12: 1165.52
A13: 10 | B13: Recondicionamento completo de transformadores de 75 kVA | C13: unid. | D13: 6 | E13: ='10.1.CPU subest.'!H164 -> 2913.79 | F13: 17482.74
A14: TOTAL | F14: =ROUND(SUM(F4:F13),2) -> 129215.35
A15: Obeservação:Distrtibuição de Transformadores: a) EBP-01: 02 unidades de 5000kVA e 01 unidade de 45 kVA; b) EBs: 59 unidades de 75 kVA, 17 unidades de 45 kVA e 21 unidades monofásicas de 5kVA.

Sheet 10.1.CPU subest.
A1: PLANILHA DE COMPOSIÇÃO DE PREÇO UNITÁRIO DE SUBESTAÇÃO
A2: 2.6.1.1 GESTÃO DE OPERAÇÃO E MANUTENÇÃO | G2: DATA: Outubro/2021
A3: SERVIÇO: Coleta e análise físico-química e cromatográfica do óleo dos transformadores | G3: UNIDADE: | H3: un
A4: MATERIAL
A5: DESCRIÇÃO | B5: UNIDADE | C5: QUANT. | G5: P.UNIT. | H5: P.TOTAL
A6: Frasco de vidro âmbar 1 litro | B6: un | C6: 1 | G6: 8.21 | H6: =ROUND((G6*C6),2) -> 8.21
A8: SUB-TOTAL | H8: =SUM(H6:H7) -> 8.21
A9: MÃO DE OBRA
A10: DESCRIÇÃO | B10: UNIDADE | C10: QUANT. | G10: P.UNIT. | H10: P.TOTAL
A11: Engenheiro químico – Profissional Médio | B11: h | C11: 1 | G11: =56.38*1.2503 -> 70.49 | H11: =ROUND((C11*G11),2) -> 70.49
A12: 00007153 (SINAPI) - Técnico em Laboratório e Campo de Construção Civil | B12: h | C12: 1 | G12: 35.96 | H12: =ROUND((C12*G12),2) -> 35.96
A13: 00002438 (SINAPI) - Eletrotécnico | B13: h | C13: 2 | G13: 24.14 | H13: =ROUND((C13*G13),2) -> 48.28
A14: 00000247 (SINAPI) - Ajudante de Eletricista | B14: h | C14: 2 | G14: 13.08 | H14: =ROUND((C14*G14),2) -> 26.16
A15: SUB-TOTAL | H15: =SUM(H11:H14) -> 180.89
A16: Encargos Sociais | B16: 0 | H16: =B16*H15 -> 0
A17: PRODUÇÃO DA EQUIPE | B17: 1 | C17: CUSTO | H17: =H15+H8+H16 -> 189.1
A18: CUSTO UNITÁRIO DO SERVIÇO | H18: =H17/B17 -> 189.1
A19: BDI | B19: 0 | H19: =ROUND((H18*B19),2) -> 0
A20: TOTAL DO SERVIÇO - R$ | H20: =ROUND((H18+H19),2) -> 189.1
A21: 2.6.1.2 GESTÃO DE OPERAÇÃO E MANUTENÇÃO | G21: DATA: Outubro/2021
A22: SERVIÇO: Manutenção de disjuntores a vácuo | G22: UNIDADE: | H22: un
A23: MÃO DE OBRA
A24: DESCRIÇÃO | B24: UNIDADE | C24: QUANT. | G24: P.UNIT. | H24: P.TOTAL
A25: 00002438 (SINAPI) - Eletrotécnico | B25: h | C25: 16 | G25: 24.14 | H25: =ROUND((C25*G25),2) -> 386.24
A26: 00002436 (SINAPI) - Eletricista | B26: h | C26: 16 | G26: 18.61 | H26: =ROUND((C26*G26),2) -> 297.76
A27: 00000247 (SINAPI) - Ajudante de Eletricista | B27: h | C27: 16 | G27: 13.08 | H27: =ROUND((C27*G27),2) -> 209.28
A28: SUB-TOTAL | H28: =SUM(H25:H27) -> 893.28
A29: Encargos Sociais | B29: 0 | H29: =B29*H28 -> 0
A30: PRODUÇÃO DA EQUIPE | B30: 1 | C30: CUSTO | H30: =H28+H29 -> 893.28
A31: CUSTO UNITÁRIO DO SERVIÇO | H31: =H30/B30 -> 893.28
A32: BDI | B32: 0 | H32: =ROUND((H31*B32),2) -> 0
A33: TOTAL DO SERVIÇO - R$ | H33: =ROUND((H31+H32),2) -> 893.28
A35: 2.6.1.3 GESTÃO DE OPERAÇÃO E MANUTENÇÃO PARA O PERÍMETRO IRRIGADO PEDRA BRANCA | G35: =G2 -> DATA: Outubro/2021
A36: SERVIÇO: Manutenção de disjuntores PVO (pequeno volume de óleo) | G36: UNIDADE: | H36: un
A37: EQUIPAMENTO
A38: DESCRIÇÃO | B38: UNIDADE | C38: QUANT. | G38: P.UNIT. | H38: P.TOTAL
A39: Compressor de ar - CHP | B39: h | C39: 1
A40: Compressor de Ar, Vazão De 10 PCM, Reservatório 100 L, Pressão de Trabalho entre 6,9 e 9,7 BAR, Potência 2 HP, Tensão 110/220 V (COTAÇÃO) | B40: UNIDADE | C40: 1 | G40: 2141.4 | H40: -
A41: Compressor de Ar, Vazão De 10 PCM, Reservatório 100 L, Pressão de Trabalho entre 6,9 e 9,7 BAR, Potência 2 HP, Tensão 110/220 V - Depreciação. Af_05/2017 | B41: h | C41: 5.3e-05 | G41: - | H41: =C41*G40 -> 0.11
A42: Compressor de Ar, Vazão De 10 PCM, Reservatório 100 L, Pressão de Trabalho entre 6,9 e 9,7 BAR, Potência 2 HP, Tensão 110/220 V - Juros. Af_05/2017 | B42: h | C42: 8e-06 | G42: - | H42: =C42*G40 -> 0.02
A43: Compressor de Ar, Vazão De 10 PCM, Reservatório 100 L, Pressão de Trabalho entre 6,9 e 9,7 BAR, Potência 2 HP, Tensão 110/220 V - Manutenção. Af_05/2017 | B43: h | C43: 6.7e-05 | G43: - | H43: =C43*G40 -> 0.14
A44: Compressor de Ar, Vazão De 10 PCM, Reservatório 100 L, Pressão de Trabalho entre 6,9 e 9,7 BAR, Potência 2 HP, Tensão 110/220 V - Materiais na Operação. Af_05/2017 | B44: h | C44: 1 | G44: - | H44: =C44*H45 -> 1.13
A45: 2705 (SINAPI) Energia Elétrica até 2000 KW/H Industrial, Sem Demanda | B45: KW/H | C45: 1.27 | G45: 0.89 | H45: =C45*G45 -> 1.13
A46: SUB-TOTAL | H46: =SUM(H41,H42,H43,H44) -> 1.4
A47: MATERIAL
A48: DESCRIÇÃO | B48: UNIDADE | C48: QUANT. | G48: P.UNIT. | H48: P.TOTAL
A49: 00003768 (SINAPI) Lixa para ferro | B49: und | C49: 5 | G49: 2.45 | H49: =ROUND((C49*G49),2) -> 12.25
A50: 00007293 (SINAPI) Tinta alumínio esmalte protetora superfícies metálica | B50: l | C50: 0.25 | G50: 32.8 | H50: =ROUND((C50*G50),2) -> 8.2
A51: Óleo isolante | B51: l | C51: 10 | G51: 21.8 | H51: =ROUND((C51*G51),2) -> 218
A52: SUB-TOTAL | H52: =SUM(H49:H51) -> 238.45
A53: MÃO DE OBRA
A54: DESCRIÇÃO | B54: UNIDADE | C54: QUANT. | G54: P.UNIT. | H54: P.TOTAL
A55: 00002438 (SINAPI) Eletrotécnico | B55: h | C55: 8 | G55: 24.14 | H55: =ROUND((C55*G55),2) -> 193.12
A56: 00002436 (SINAPI) Eletricista | B56: h | C56: 8 | G56: 18.61 | H56: =ROUND((C56*G56),2) -> 148.88
A57: 00000247 (SINAPI) - Ajudante de Eletricista | B57: h | C57: 8 | G57: 13.08 | H57: =ROUND((C57*G57),2) -> 104.64
A58: 00004783 (SINAPI) - Pintor | B58: h | C58: 2 | G58: 18.61 | H58: =ROUND((C58*G58),2) -> 37.22
A59: SUB-TOTAL | H59: =SUM(H55:H58) -> 483.86
A60: Encargos Sociais | B60: 0 | H60: =B60*H59 -> 0
A61: PRODUÇÃO DA EQUIPE | B61: 1 | C61: CUSTO | H61: =H46+H52+H59+H60 -> 723.71
A62: CUSTO UNITÁRIO DO SERVIÇO | H62: =H61/B61 -> 723.71
A63: BDI | B63: 0 | H63: =ROUND((H62*B63),2) -> 0
A64: TOTAL DO SERVIÇO - R$ | H64: =ROUND((H62+H63),2) -> 723.71
A66: 2.6.1.4 GESTÃO DE OPERAÇÃO E MANUTENÇÃO | G66: DATA: Outubro/2021
A67: SERVIÇO: Manutenção de transformadores de 5kVA, 45 kVA e 75 kVA | G67: UNIDADE: | H67: un
A68: EQUIPAMENTO
A69: DESCRIÇÃO | B69: UNIDADE | C69: QUANT. | G69: P.UNIT. | H69: P.TOTAL
A70: Compressor de ar - CHP | B70: h | C70: 1
A71: Compressor de Ar, Vazão De 10 PCM, Reservatório 100 L, Pressão de Trabalho entre 6,9 e 9,7 BAR, Potência 2 HP, Tensão 110/220 V (COTAÇÃO) | B71: UNIDADE | C71: 1 | G71: 2141.4 | H71: -
A72: Compressor de Ar, Vazão De 10 PCM, Reservatório 100 L, Pressão de Trabalho entre 6,9 e 9,7 BAR, Potência 2 HP, Tensão 110/220 V - Depreciação. Af_05/2017 | B72: h | C72: 5.3e-05 | G72: - | H72: =C72*G71 -> 0.11
A73: Compressor de Ar, Vazão De 10 PCM, Reservatório 100 L, Pressão de Trabalho entre 6,9 e 9,7 BAR, Potência 2 HP, Tensão 110/220 V - Juros. Af_05/2017 | B73: h | C73: 8e-06 | G73: - | H73: =C73*G71 -> 0.02
A74: Compressor de Ar, Vazão De 10 PCM, Reservatório 100 L, Pressão de Trabalho entre 6,9 e 9,7 BAR, Potência 2 HP, Tensão 110/220 V - Manutenção. Af_05/2017 | B74: h | C74: 6.7e-05 | G74: - | H74: =C74*G71 -> 0.14
A75: Compressor de Ar, Vazão De 10 PCM, Reservatório 100 L, Pressão de Trabalho entre 6,9 e 9,7 BAR, Potência 2 HP, Tensão 110/220 V - Materiais na Operação. Af_05/2017 | B75: h | C75: 1 | G75: - | H75: =C75*H76 -> 1.13
A76: 2705 (SINAPI) Energia Elétrica até 2000 KW/H Industrial, Sem Demanda | B76: KW/H | C76: 1.27 | G76: 0.89 | H76: =C76*G76 -> 1.13
A77: SUB-TOTAL | H77: =SUM(H72,H73,H74,H75) -> 1.4
A78: MATERIAL
A79: DESCRIÇÃO | B79: UNIDADE | C79: QUANT. | G79: P.UNIT. | H79: P.TOTAL
A80: 00003768 (SINAPI) Lixa para ferro | B80: und | C80: 15 | G80: 2.45 | H80: =ROUND((C80*G80),2) -> 36.75
A81: 00007293 (SINAPI) Tinta Esmalte Sintético Premium De Dupla ação Grafite Fosco Para Superfícies Metálicas Ferrosas | B81: l | C81: 0.5 | G81: 32.8 | H81: =ROUND((C81*G81),2) -> 16.4
A82: SUB-TOTAL | H82: =SUM(H80:H81) -> 53.15
A83: MÃO DE OBRA
A84: DESCRIÇÃO | B84: UNIDADE | C84: QUANT. | G84: P.UNIT. | H84: P.TOTAL
A85: 00002438 (SINAPI) Eletrotécnico | B85: h | C85: 16 | G85: 24.14 | H85: =ROUND((C85*G85),2) -> 386.24
A86: 00002436 (SINAPI) Eletricista | B86: h | C86: 16 | G86: 18.61 | H86: =ROUND((C86*G86),2) -> 297.76
A87: 00000247 (SINAPI) - Ajudante de Eletricista | B87: h | C87: 16 | G87: 13.08 | H87: =ROUND((C87*G87),2) -> 209.28
A88: 00004783 (SINAPI) - Pintor | B88: h | C88: 6 | G88: 18.61 | H88: =ROUND((C88*G88),2) -> 111.66
A89: SUB-TOTAL | H89: =SUM(H85:H88) -> 1004.94
A90: Encargos Sociais | B90: 0 | H90: =B90*H89 -> 0
A91: PRODUÇÃO DA EQUIPE | B91: 1 | C91: CUSTO | H91: =H77+H82+H89+H90 -> 1059.49
A92: CUSTO UNITÁRIO DO SERVIÇO | H92: =H91/B91 -> 1059.49
A93: BDI | B93: 0 | H93: =ROUND((H92*B93),2) -> 0
A94: TOTAL DO SERVIÇO - R$ | H94: =ROUND((H92+H93),2) -> 1059.49
A96: 2.6.1.5 GESTÃO DE OPERAÇÃO E MANUTENÇÃO | G96: DATA: Outubro/2021
A97: SERVIÇO: Manutenção de transformadores de 5.000 kVA | G97: UNIDADE: | H97: un
A98: EQUIPAMENTO
A99: DESCRIÇÃO | B99: UNIDADE | C99: QUANT. | G99: P.UNIT. | H99: P.TOTAL
A100: Compressor de ar - CHP | B100: h | C100: 1
A101: Compressor de Ar, Vazão De 10 PCM, Reservatório 100 L, Pressão de Trabalho entre 6,9 e 9,7 BAR, Potência 2 HP, Tensão 110/220 V (COTAÇÃO) | B101: UNIDADE | C101: 1 | G101: 2141.4 | H101: -
A102: Compressor de Ar, Vazão De 10 PCM, Reservatório 100 L, Pressão de Trabalho entre 6,9 e 9,7 BAR, Potência 2 HP, Tensão 110/220 V - Depreciação. Af_05/2017 | B102: h | C102: 5.3e-05 | G102: - | H102: =C102*G101 -> 0.11
A103: Compressor de Ar, Vazão De 10 PCM, Reservatório 100 L, Pressão de Trabalho entre 6,9 e 9,7 BAR, Potência 2 HP, Tensão 110/220 V - Juros. Af_05/2017 | B103: h | C103: 8e-06 | G103: - | H103: =C103*G101 -> 0.02
A104: Compressor de Ar, Vazão De 10 PCM, Reservatório 100 L, Pressão de Trabalho entre 6,9 e 9,7 BAR, Potência 2 HP, Tensão 110/220 V - Manutenção. Af_05/2017 | B104: h | C104: 6.7e-05 | G104: - | H104: =C104*G101 -> 0.14
A105: Compressor de Ar, Vazão De 10 PCM, Reservatório 100 L, Pressão de Trabalho entre 6,9 e 9,7 BAR, Potência 2 HP, Tensão 110/220 V - Materiais na Operação. Af_05/2017 | B105: h | C105: 1 | G105: - | H105: =C105*H106 -> 1.13
A106: 2705 (SINAPI) Energia Elétrica até 2000 KW/H Industrial, Sem Demanda | B106: KW/H | C106: 1.27 | G106: 0.89 | H106: =C106*G106 -> 1.13
A107: SUB-TOTAL | H107: =SUM(H102,H103,H104,H105) -> 1.4
A108: MATERIAL
A109: DESCRIÇÃO | B109: UNIDADE | C109: QUANT. | G109: P.UNIT. | H109: P.TOTAL
A110: 00003768 (SINAPI) Lixa para ferro | B110: und | C110: 20 | G110: 2.45 | H110: =ROUND((C110*G110),2) -> 49
A111: 00007293 (SINAPI) Tinta Esmalte Sintético Premium De Dupla ação Grafite Fosco Para Superfícies Metálicas Ferrosas | B111: l | C111: 2 | G111: 32.8 | H111: =ROUND((C111*G111),2) -> 65.6
A112: SUB-TOTAL | H112: =SUM(H110:H111) -> 114.6
A113: MÃO DE OBRA
A114: DESCRIÇÃO | B114: UNIDADE | C114: QUANT. | G114: P.UNIT. | H114: P.TOTAL
A115: 00002438 (SINAPI) Eletrotécnico | B115: h | C115: 24 | G115: 24.14 | H115: =ROUND((C115*G115),2) -> 579.36
A116: 00002436 (SINAPI) Eletricista | B116: h | C116: 24 | G116: 18.61 | H116: =ROUND((C116*G116),2) -> 446.64
A117: 00000247 (SINAPI) - Ajudante de Eletricista | B117: h | C117: 24 | G117: 13.08 | H117: =ROUND((C117*G117),2) -> 313.92
A118: 00004783 (SINAPI) - Pintor | B118: h | C118: 16 | G118: 18.61 | H118: =ROUND((C118*G118),2) -> 297.76
A119: SUB-TOTAL | H119: =SUM(H115:H118) -> 1637.68
A120: Encargos Sociais | B120: 0 | H120: =B120*H119 -> 0
A121: PRODUÇÃO DA EQUIPE | B121: 1 | C121: CUSTO | H121: =H107+H112+H119+H120 -> 1753.68
A122: CUSTO UNITÁRIO DO SERVIÇO | H122: =H121/B121 -> 1753.68
A123: BDI | B123: 0 | H123: =ROUND((H122*B123),2) -> 0
A124: TOTAL DO SERVIÇO - R$ | H124: =ROUND((H122+H123),2) -> 1753.68
A126: 2.6.1.6 GESTÃO DE OPERAÇÃO E MANUTENÇÃO PARA O PERÍMETRO IRRIGADO PEDRA BRANCA | G126: DATA: Outubro/2021
A127: SERVIÇO: Recondicionamento completo de transformadores de 5000 kVA | G127: UNIDADE: | H127: un
A128: SERVIÇO
A129: DESCRIÇÃO | B129: UNIDADE | C129: QUANT. | D129: PROD | E129: IMPROD | F129: P.UNIT. PROD | G129: P.UNIT. IMPR | H129: P.TOTAL
A130: Comissionamento do óleo isolante com utilização de carreta tanque em aço inox equipadas de bombas a vácuo | B130: unid | C130: 1 | D130: 1 | E130: 0 | F130: 29137.93 | H130: =C130*D130*F130+C130*E130*G130 -> 29137.93
A131: SUB-TOTAL | H131: =SUM(H130:H130) -> 29137.93
A132: CUSTO UNITÁRIO DO SERVIÇO | H132: =H131 -> 29137.93
A133: BDI | B133: 0 | H133: =ROUND((H132*B133),2) -> 0
A134: TOTAL DO SERVIÇO - R$ | H134: =ROUND((H132+H133),2) -> 29137.93
A136: 2.6.1.7 GESTÃO DE OPERAÇÃO E MANUTENÇÃO | G136: DATA: Outubro/2021
A137: SERVIÇO: Recondicionamento completo de transformadores de 5 kVA | G137: UNIDADE: | H137: un
A138: SERVIÇO
A139: DESCRIÇÃO | B139: UNIDADE | C139: QUANT. | D139: PROD | E139: IMPROD | F139: P.UNIT. PROD | G139: P.UNIT. IMPR | H139: P.TOTAL
A140: Comissionamento do óleo isolante com utilização de carreta tanque em aço inox equipadas de bombas a vácuo | B140: unid | C140: 1 | D140: 1 | E140: 0 | F140: 582.76 | H140: =C140*D140*F140+C140*E140*G140 -> 582.76
A141: SUB-TOTAL | H141: =SUM(H140:H140) -> 582.76
A142: CUSTO UNITÁRIO DO SERVIÇO | H142: =H141 -> 582.76
A143: BDI | B143: 0 | H143: =ROUND((H142*B143),2) -> 0
A144: TOTAL DO SERVIÇO - R$ | H144: =ROUND((H142+H143),2) -> 582.76
A146: 2.6.1.8 GESTÃO DE OPERAÇÃO E MANUTENÇÃO PARA O PERÍMETRO IRRIGADO PEDRA BRANCA | G146: DATA: Outubro/2021
A147: SERVIÇO: Recondicionamento completo de transformadores de 45 kVA | G147: UNIDADE: | H147: un
A148: SERVIÇO
A149: DESCRIÇÃO | B149: UNIDADE | C149: QUANT. | D149: PROD | E149: IMPROD | F149: P.UNIT. PROD | G149: P.UNIT. IMPR | H149: P.TOTAL
A150: Comissionamento do óleo isolante com utilização de carreta tanque em aço inox equipadas de bombas a vácuo | B150: unid | C150: 1 | D150: 1 | E150: 0 | F150: 1165.52 | H150: =C150*D150*F150+C150*E150*G150 -> 1165.52
A151: SUB-TOTAL | H151: =SUM(H150:H150) -> 1165.52
A152: CUSTO UNITÁRIO DO SERVIÇO | H152: =H151 -> 1165.52
A153: BDI | B153: 0 | H153: =ROUND((H152*B153),2) -> 0
A154: TOTAL DO SERVIÇO - R$ | H154: =ROUND((H152+H153),2) -> 1165.52
A156: 2.6.1.9 GESTÃO DE OPERAÇÃO E MANUTENÇÃO | G156: DATA: Outubro/2021
A157: SERVIÇO: Recondicionamento completo de transformadores de 75 Kva | G157: UNIDADE: | H157: un
A158: SERVIÇO
A159: DESCRIÇÃO | B159: UNIDADE | C159: QUANT. | D159: PROD | E159: IMPROD | F159: P.UNIT. PROD | G159: P.UNIT. IMPR | H159: P.TOTAL
A160: Comissionamento do óleo isolante com utilização de carreta tanque em aço inox equipadas de bombas a vácuo | B160: unid | C160: 1 | D160: 1 | E160: 0 | F160: 2913.79 | H160: =C160*D160*F160+C160*E160*G160 -> 2913.79
A161: SUB-TOTAL | H161: =SUM(H160:H160) -> 2913.79
A162: CUSTO UNITÁRIO DO SERVIÇO | H162: =H161 -> 2913.79
A163: BDI | B163: 0 | H163: =ROUND((H162*B163),2) -> 0
A164: TOTAL DO SERVIÇO - R$ | H164: =ROUND((H162+H163),2) -> 2913.79

Sheet 11.Man. Civ.
A1: PLANILHA ESTMATIVA DE CUSTO DE MANUTENÇÃO CIVIL
D2: VALOR CONTRATUAL
A3: ITEM | B3: DISCRIMINAÇÃO DOS SERVIÇOS E MATERIAIS | C3: UNID. | D3: QUANT. | E3: PREÇO R$
E4: UNIT. | F4: TOTAL
A5: 1 | B5: Pintura em acrílico em paredes externas e externas sem massa corrida | C5: m² | D5: 15000 | E5: ='11.1.CPU Man. Civ.'!E156 -> 15.29 | F5: =ROUND(($D5*E5),2) -> 229350
A6: 2 | B6: Pintura de esmalte em esquadrias de ferro e madeira, com duas demão | C6: m² | D6: 4000 | E6: ='11.1.CPU Man. Civ.'!E137 -> 49.71 | F6: 198840
A7: 3 | B7: Pintura a base de tinta acrílica para pisos (duas demãos), inclusive preparo de superfície que deve estar limpa, seca, isenta de gordura, graxa ou mofo | C7: m² | D7: 50 | E7: ='11.1.CPU Man. Civ.'!E117 -> 14.8 | F7: 740
A8: 4 | B8: Revestimento de argamassa de cimento e areia no traço 1:4 com 2 cm de espessura com impermeabilizante | C8: m² | D8: 1500 | E8: ='11.1.CPU Man. Civ.'!E245 -> 30.97 | F8: 46455
A9: 5 | B9: Emassamento de parede externa com uma demão de massa acrílica, para pintura látex | C9: m² | D9: 800 | E9: ='11.1.CPU Man. Civ.'!E60 -> 8.57 | F9: 6856
A10: 6 | B10: Emassamento de parede interna com uma demão de massa acrílica, para pintura látex | C10: m² | D10: 800 | E10: ='11.1.CPU Man. Civ.'!E60 -> 8.57 | F10: 6856
A11: 7 | B11: Caiação em 3(três) demãos | C11: m² | D11: 7000 | E11: ='11.1.CPU Man. Civ.'!E192 -> 8.9 | F11: 62300
A12: 8 | B12: Aplicação de Verniz Poliuterano | C12: m² | D12: 300 | E12: ='11.1.CPU Man. Civ.'!E174 -> 8.55 | F12: 2565
A13: 9 | B13: Recuperação de piso cimentado liso, com 2(dois) cm de espessura | C13: m² | D13: 600 | E13: ='11.1.CPU Man. Civ.'!E210 -> 55.25 | F13: 33150
A14: 10 | B14: Recuperação de piso cimentado rústico, com 2(dois) cm de espessura | C14: m² | D14: 300 | E14: ='11.1.CPU Man. Civ.'!E228 -> 48.43 | F14: 14529
A15: 11 | B15: Instalação de telha ondulada de fibrocimento - 70 unidades de 2,44 x 0,5 m | C15: m² | D15: 100 | E15: ='11.1.CPU Man. Civ.'!E97 -> 44.71 | F15: 4471
A16: 12 | B16: Instalação de telha ondulada de fibrocimento - 15 unidades de 9,20 x 1,0 m, espessura 8,0mm - tipo canalete 90º | C16: m² | D16: 300 | E16: ='11.1.CPU Man. Civ.'!E97 -> 44.71 | F16: 13413
A17: 13 | B17: Manutenção de alvenaria de bloco cerâmico | C17: m² | D17: 1000 | E17: ='11.1.CPU Man. Civ.'!E23 -> 48.3 | F17: 48300
A18: 14 | B18: Recuperação da cerca de concreto | C18: m | D18: 2000 | E18: ='11.1.CPU Man. Civ.'!E257 -> 59.43 | F18: 118860
A19: 15 | B19: Serviço de Roço ou broca, aceiramento, encoivaramento com largura de faixa limpa de 4,0m | C19: ha | D19: 10 | E19: ='11.1.CPU Man. Civ.'!E264 -> 4342.5 | F19: 43425
A20: 16 | B20: Pintura a base de tinta epoxi | C20: m² | D20: 2000 | E20: ='11.1.CPU Man. Civ.'!E283 -> 63.59 | F20: 127180
A21: TOTAL DO ORÇAMENTO | F21: =SUM(F5:F20) -> 957290
A22: TOTAL PREVISTO PARA EXECUÇÃO | C22: 0.2 | F22: =F21*$C22 -> 191458
A23: TOTAL | F23: =F22 -> 191458
A24: R - CUSTO DE ADMINISTRAÇÃO - (25,00% DO ITEM A)

Sheet 11.1.CPU Man. Civ.
A1: COMPOSIÇÃO DE CUSTOS UNITÁRIOS PARA MANUTENÇÃO DE ESCRITÓRIOS, OFICINA E CASAS DE BOMBA
A3: COMPOSIÇÃO DE PREÇO UNITÁRIO | C3: DATA: Out/2021
A4: SERVIÇO: Alvenaria de tijolos cerâmicos furados, 10x20x30cm, assentados com argamassa cimento/areia 1:7 com preparo manual | D4: UNIDADE: | E4: m²
A5: MATERIAL
A6: DESCRIÇÃO | B6: UNIDADE | C6: QUANT. | D6: P.UNIT. | E6: P.TOTAL
A7: 7266 (SINAPI) - Tijolo furado, 8 furos - dimensões: (9 X 19 X 19) cm | B7: un. | C7: 16 | D7: 0.7 | E7: =C7*D7 -> 11.2
A8: SUB-TOTAL | E8: =SUM(E7:E7) -> 11.2
A9: SERVIÇOS - COMPOSIÇÕES AUXILIARES
A10: DESCRIÇÃO | B10: UNIDADE | C10: QUANT. | D10: P.UNIT. | E10: P.TOTAL
A11: 87365 (SINAPI) - Argamassa traço 1:7 (cimento e areia), preparo manual | B11: m³ | C11: 0.012 | D11: 516.19 | E11: =C11*D11 -> 6.19
A12: SUB-TOTAL | E12: =SUM(E11:E11) -> 6.19
A13: MÃO DE OBRA
A14: DESCRIÇÃO | B14: UNIDADE | C14: QUANT. | D14: P.UNIT. | E14: P.TOTAL
A15: 88309 (SINAPI) - Pedreiro | B15: h | C15: 0.68 | D15: 26.66 | E15: =ROUND((C15*D15),2) -> 18.13
A16: 88316 (SINAPI) - Servente | B16: h | C16: 0.68 | D16: 18.79 | E16: =ROUND((C16*D16),2) -> 12.78
A17: SUB-TOTAL | E17: =SUM(E15:E16) -> 30.91
A18: Encargos Sociais | E18: =$B18*E17 -> 0
A20: PRODUÇÃO DA EQUIPE | B20: 1 | C20: CUSTO | E20: =E17+E12+E18+E8 -> 48.3
A21: CUSTO UNITÁRIO DO SERVIÇO | E21: =E20/$B20 -> 48.3
A22: BDI | B22: 0 | E22: =ROUND((E21*$B22),2) -> 0
A23: TOTAL DO SERVIÇO - R$ | E23: =ROUND((E21+E22),2) -> 48.3
A25: COMPOSIÇÃO DE PREÇO UNITÁRIO | D25: =C$3 -> DATA: Out/2021
A26: SERVIÇO: Desinsetização e Desratização Geral | D26: UNIDADE: | E26: m²
A27: MATERIAL
A28: DESCRIÇÃO | B28: UNIDADE | C28: QUANT. | D28: P.UNIT. | E28: P.TOTAL
A29: Inseticida para uso doméstico | B29: l | C29: 0.01 | D29: 65.94 | E29: =C29*D29 -> 0.66
A30: SUB-TOTAL | E30: =SUM(E29:E29) -> 0.66
A31: MÃO DE OBRA
A32: DESCRIÇÃO | B32: UNIDADE | C32: QUANT. | D32: P.UNIT. | E32: P.TOTAL
A33: 00000242 (SINAPI) - AJUDANTE ESPECIALIZADO | B33: h | C33: 0.02 | D33: 14.26 | E33: =ROUND((C33*D33),2) -> 0.29
A34: 00000248 (SINAPI) - AJUDANTE DE OPERACAO EM GERAL | B34: h | C34: 0.02 | D34: 13.42 | E34: =ROUND((C34*D34),2) -> 0.27
A35: SUB-TOTAL | E35: =SUM(E33:E34) -> 0.56
A36: Encargos Sociais | E36: =E35*B36 -> 0
A38: PRODUÇÃO DA EQUIPE | B38: 1 | C38: CUSTO | E38: =E35+E30+E36 -> 1.22
A39: CUSTO UNITÁRIO DO SERVIÇO | E39: =E38/$B38 -> 1.22
A40: BDI | B40: 0 | E40: =ROUND((E39*$B40),2) -> 0
A41: TOTAL DO SERVIÇO - R$ | E41: =ROUND((E39+E40),2) -> 1.22
A43: COMPOSIÇÃO DE PREÇO UNITÁRIO | D43: =C$3 -> DATA: Out/2021
A44: SERVIÇO: Emassamento parede interna e externa, com massa acrílica, uma demão | D44: UNIDADE: | E44: m²
A45: MATERIAL
A46: DESCRIÇÃO | B46: UNIDADE | C46: QUANT. | D46: P.UNIT. | E46: P.TOTAL
A47: 4056 (SINAPI) - Massa acrilica para paredes interior/exterior | B47: gl | C47: 0.098 | D47: 26.8 | E47: =ROUND((C47*D47),2) -> 2.63
A48: 3767 (SINAPI) - Lixa para parede ou madeira | B48: und | C48: 0.25 | D48: 0.58 | E48: =ROUND((C48*D48),2) -> 0.15
A49: SUB-TOTAL | E49: =SUM(E47:E48) -> 2.78
A50: MÃO DE OBRA
A51: DESCRIÇÃO | B51: UNIDADE | C51: QUANT. | D51: P.UNIT. | E51: P.TOTAL
A52: 00004783 (SINAPI) - Pintor | B52: h | C52: 0.18 | D52: 18.61 | E52: =ROUND((C52*D52),2) -> 3.35
A53: 88316 (SINAPI) - Servente | B53: h | C53: 0.13 | D53: 18.79 | E53: =ROUND((C53*D53),2) -> 2.44
A54: SUB-TOTAL | E54: =SUM(E52:E53) -> 5.79
A55: Encargos Sociais | E55: =$B55*E54 -> 0
A57: PRODUÇÃO DA EQUIPE | B57: 1 | C57: CUSTO | E57: =E54+E55+E49 -> 8.57
A58: CUSTO UNITÁRIO DO SERVIÇO | E58: =E57/$B57 -> 8.57
A59: BDI | B59: 0 | E59: =ROUND((E58*$B59),2) -> 0
A60: TOTAL DO SERVIÇO - R$ | E60: =ROUND((E58+E59),2) -> 8.57
A62: COMPOSIÇÃO DE PREÇO UNITÁRIO | D62: =C$3 -> DATA: Out/2021
A63: SERVIÇO: Chapisco convencional | D63: UNIDADE: | E63: m³
A64: SERVIÇOS - COMPOSIÇÕES AUXILIARES
A65: DESCRIÇÃO | B65: UNIDADE | C65: QUANT. | D65: P.UNIT. | E65: P.TOTAL
A66: 87316 (SINAPI) - Argamassa traço 1:4 (em volume de cimento e areia grossa úmida) para chapisco convencional, preparo mecânico com betoneira 400 L | B66: m³ | C66: 0.02 | D66: 489.91 | E66: =D66*C66 -> 9.8
A68: SUB-TOTAL | E68: =SUM(E66:E67) -> 9.8
A69: MÃO DE OBRA
A70: DESCRIÇÃO | B70: UNIDADE | C70: QUANT. | D70: P.UNIT. | E70: P.TOTAL
A71: 88309 (SINAPI) - Pedreiro | B71: h | C71: 0.6 | D71: 26.66 | E71: =ROUND((C71*D71),2) -> 16
A72: 88316 (SINAPI) - Servente | B72: h | C72: 0.6 | D72: 18.79 | E72: =ROUND((C72*D72),2) -> 11.27
A73: SUB-TOTAL | E73: =SUM(E71:E72) -> 27.27
A74: Encargos Sociais | E74: =$B74*E73 -> 0
A76: PRODUÇÃO DA EQUIPE | B76: 1 | C76: CUSTO | E76: =E73+E68+E74 -> 37.07
A77: CUSTO UNITÁRIO DO SERVIÇO | E77: =E76/$B76 -> 37.07
A78: BDI | B78: =B59 -> 0 | E78: =ROUND((E77*$B78),2) -> 0
A79: TOTAL DO SERVIÇO - R$ | E79: =ROUND((E77+E78),2) -> 37.07
A81: COMPOSIÇÃO DE PREÇO UNITÁRIO | D81: =C$3 -> DATA: Out/2021
A82: SERVIÇO : Telhamento com telha de fibrocimento ondulada, espessura 6mm, incluso juntas de vedação e acessórios de fixação | D82: UNIDADE: | E82: m
A83: MATERIAL
A84: DESCRIÇÃO | B84: UNIDADE | C84: QUANT. | D84: P.UNIT. | E84: P.TOTAL
A85: 00007194 (SINAPI) - TELHA DE FIBROCIMENTO ONDULADA E = 6 MM, DE 2,44 X 1,10 M (SEM AMIANTO) | B85: m² | C85: 1.15 | D85: 30.18 | E85: =C85*D85 -> 34.71
A86: SUB-TOTAL | E86: =SUM(E85:E85) -> 34.71
A87: MÃO DE OBRA
A88: DESCRIÇÃO | B88: UNIDADE | C88: QUANT. | D88: P.UNIT. | E88: P.TOTAL
A89: 88309 (SINAPI) - Pedreiro | B89: h | C89: 0.22 | D89: 26.66 | E89: =ROUND((C89*D89),2) -> 5.87
A90: 88316 (SINAPI) - Servente | B90: h | C90: 0.22 | D90: 18.79 | E90: =ROUND((C90*D90),2) -> 4.13
A91: Telhadista | E91: =SUM(E89:E90) -> 10
A92: Encargos Sociais | D92: =$B92 -> 0 | E92: =D92*E91 -> 0
A94: PRODUÇÃO DA EQUIPE | B94: 1 | C94: CUSTO | E94: =E91+E86+E92 -> 44.71
A95: CUSTO UNITÁRIO DO SERVIÇO | E95: =E94/$B94 -> 44.71
A96: BDI | B96: =B40 -> 0 | E96: =ROUND((E95*$B96),2) -> 0
A97: TOTAL DO SERVIÇO - R$ | E97: =ROUND((E95+E96),2) -> 44.71
A99: COMPOSIÇÃO DE PREÇO UNITÁRIO | D99: =C$3 -> DATA: Out/2021
A100: SERVIÇO: Pintura a base de tinta acrílica para pisos (duas demãos), inclusive preparo de superfície que deve estar limpa, seca, isenta de gordura, graxa ou mofo. | D100: UNIDADE: | E100: m²
A101: MATERIAL
A102: DESCRIÇÃO | B102: UNIDADE | C102: QUANT. | D102: P.UNIT. | E102: P.TOTAL
A103: 7348 (SINAPI) - Tinta acrilica para piso | B103: gl | C103: 0.42 | D103: 12.05 | E103: =ROUND((C103*D103),2) -> 5.06
A104: 6085 (SINAPI) - Selador acrílico | B104: L | C104: 0.16 | D104: 6.59 | E104: =ROUND((C104*D104),2) -> 1.05
A105: 3767 (SINAPI) - Lixa para parede ou madeira | B105: ud | C105: 0.5 | D105: 0.58 | E105: =ROUND((C105*D105),2) -> 0.29
A106: SUB-TOTAL | E106: =SUM(E103:E105) -> 6.4
A107: MÃO DE OBRA
A108: DESCRIÇÃO | B108: UNIDADE | C108: QUANT. | D108: P.UNIT. | E108: P.TOTAL
A109: 00004783 (SINAPI) - Pintor | B109: h | C109: 0.3 | D109: 18.61 | E109: =ROUND((C109*D109),2) -> 5.58
A110: 88316 (SINAPI) - Servente | B110: h | C110: 0.15 | D110: 18.79 | E110: =ROUND((C110*D110),2) -> 2.82
A111: SUB-TOTAL | E111: =SUM(E109:E110) -> 8.4
A112: Encargos Sociais | E112: =$B112*E111 -> 0
A114: PRODUÇÃO DA EQUIPE | B114: 1 | C114: CUSTO | E114: =E111+E112+E106 -> 14.8
A115: CUSTO UNITÁRIO DO SERVIÇO | E115: =E114/$B114 -> 14.8
A116: BDI | B116: =B96 -> 0 | E116: =ROUND((E115*$B116),2) -> 0
A117: TOTAL DO SERVIÇO - R$ | E117: =ROUND((E115+E116),2) -> 14.8
A119: COMPOSIÇÃO DE PREÇO UNITÁRIO | D119: =C$3 -> DATA: Out/2021
A120: SERVIÇO: Pintura de esmalte 2 demãos para esquadria ferro | D120: UNIDADE: | E120: m²
A121: MATERIAL
A122: DESCRIÇÃO | B122: UNIDADE | C122: QUANT. | D122: P.UNIT. | E122: P.TOTAL
A123: 7307 (SINAPI) - Fundo anticorrosivo tipo zarcão ou equivalente | B123: L | C123: 0.0333 | D123: 31.98 | E123: =ROUND((C123*D123),2) -> 1.06
A124: 7292 (SINAPI) - Tinta esmalte sintetico alto brilho | B124: L | C124: 0.4134 | D124: 29.65 | E124: =ROUND((C124*D124),2) -> 12.26
A125: 5318 (SINAPI) - Solvente diluente base de aguarrás | B125: L | C125: 0.124 | D125: 14.64 | E125: =ROUND((C125*D125),2) -> 1.82
A126: SUB-TOTAL | E126: =SUM(E123:E125) -> 15.14
A127: MÃO DE OBRA
A128: DESCRIÇÃO | B128: UNIDADE | C128: QUANT. | D128: P.UNIT. | E128: P.TOTAL
A129: 00004783 (SINAPI) - Pintor | B129: h | C129: 1.05 | D129: 18.61 | E129: =ROUND((C129*D129),2) -> 19.54
A130: 88316 (SINAPI) - Servente | B130: h | C130: 0.8 | D130: 18.79 | E130: =ROUND((C130*D130),2) -> 15.03
A131: SUB-TOTAL | E131: =SUM(E129:E130) -> 34.57
A132: Encargos Sociais | E132: =$B132*E131 -> 0
A134: PRODUÇÃO DA EQUIPE | B134: 1 | C134: CUSTO | E134: =E131+E126+E121+E132 -> 49.71
A135: CUSTO UNITÁRIO DO SERVIÇO | E135: =E134/$B134 -> 49.71
A136: BDI | B136: =B116 -> 0 | E136: =ROUND((E135*$B136),2) -> 0
A137: TOTAL DO SERVIÇO - R$ | E137: =ROUND((E135+E136),2) -> 49.71
A139: COMPOSIÇÃO DE PREÇO UNITÁRIO | D139: =C$3 -> DATA: Out/2021
A140: SERVIÇO: Pintura látex acrílica ambientes internos/externos | D140: UNIDADE: | E140: m²
A141: MATERIAL
A142: DESCRIÇÃO | B142: UNIDADE | C142: QUANT. | D142: P.UNIT. | E142: P.TOTAL
A143: 3767 (SINAPI) - Lixa para parede ou madeira | B143: u | C143: 0.25 | D143: 0.58 | E143: =ROUND((C143*D143),2) -> 0.15
A144: 00007356 (SINAPI) - TINTA ACRILICA PREMIUM, COR BRANCO FOSCO | B144: l | C144: 0.15 | D144: 19.91 | E144: =ROUND((C144*D144),2) -> 2.99
A145: SUB-TOTAL | E145: =SUM(E143:E144) -> 3.14
A146: MÃO DE OBRA
A147: DESCRIÇÃO | B147: UNIDADE | C147: QUANT. | D147: P.UNIT. | E147: P.TOTAL
A148: 00004783 (SINAPI) - Pintor | B148: h | C148: 0.35 | D148: 18.61 | E148: =ROUND((C148*D148),2) -> 6.51
A149: 88316 (SINAPI) - Servente | B149: h | C149: 0.3 | D149: 18.79 | E149: =ROUND((C149*D149),2) -> 5.64
A150: SUB-TOTAL | E150: =SUM(E148:E149) -> 12.15
A151: Encargos Sociais | E151: =$B151*E150 -> 0
A153: PRODUÇÃO DA EQUIPE | B153: 1 | C153: CUSTO | E153: =E150+E145+E151 -> 15.29
A154: CUSTO UNITÁRIO DO SERVIÇO | E154: =E153/$B153 -> 15.29
A155: BDI | B155: =B136 -> 0 | E155: =ROUND((E154*$B155),2) -> 0
A156: TOTAL DO SERVIÇO - R$ | E156: =ROUND((E154+E155),2) -> 15.29
A158: COMPOSIÇÃO DE PREÇO UNITÁRIO | D158: =C$3 -> DATA: Out/2021
A159: SERVIÇO: Pintura de verniz poliuretano incolor em superfície de concreto ou tijolo aparente com e duas demãos | D159: UNIDADE: | E159: m²
A160: MATERIAL
A161: DESCRIÇÃO | B161: UNIDADE | C161: QUANT. | D161: P.UNIT. | E161: P.TOTAL
A162: 3767 (SINAPI) - Lixa para parede ou madeira | B162: und | C162: 0.5 | D162: 0.58 | E162: =ROUND((C162*D162),2) -> 0.29
A163: 00010478 (SINAPI) - Verniz Poliuretano Brilhante para Madeira, com Filtro Solar, Uso Interno e Externo | B163: L | C163: 0.04 | D163: 31.54 | E163: =ROUND((C163*D163),2) -> 1.26
A164: SUB-TOTAL | E164: =SUM(E162:E163) -> 1.55
A165: MÃO DE OBRA
A166: DESCRIÇÃO | B166: UNIDADE | C166: QUANT. | D166: P.UNIT. | E166: P.TOTAL
A167: 00004783 (SINAPI) - Pintor | B167: h | C167: 0.25 | D167: 18.61 | E167: =ROUND((C167*D167),2) -> 4.65
A168: 88316 (SINAPI) - Servente | B168: h | C168: 0.125 | D168: 18.79 | E168: =ROUND((C168*D168),2) -> 2.35
A169: SUB-TOTAL | E169: =SUM(E167:E168) -> 7
A170: Encargos Sociais | E170: =$B170*E169 -> 0
A171: PRODUÇÃO DA EQUIPE | B171: 1 | C171: CUSTO | E171: =E169+E164+E170 -> 8.55
A172: CUSTO UNITÁRIO DO SERVIÇO | E172: =E171/$B171 -> 8.55
A173: BDI | B173: =B155 -> 0 | E173: =ROUND((E172*$B173),2) -> 0
A174: TOTAL DO SERVIÇO - R$ | E174: =ROUND((E172+E173),2) -> 8.55
A176: COMPOSIÇÃO DE PREÇO UNITÁRIO | D176: =C$3 -> DATA: Out/2021
A177: SERVIÇO: Pintura tipo caiação, com três demãos. | D177: UNIDADE: | E177: m²
A178: MATERIAL
A179: DESCRIÇÃO | B179: UNIDADE | C179: QUANT. | D179: P.UNIT. | E179: P.TOTAL
A180: 00011161 (SINAPI) - CAL HIDRATADA PARA PINTURA | B180: kg | C180: 0.6 | D180: 1.97 | E180: =C180*D180 -> 1.18
A181: SUB-TOTAL | E181: =SUM(E180:E180) -> 1.18
A182: MÃO DE OBRA
A183: DESCRIÇÃO | B183: UNIDADE | C183: QUANT. | D183: P.UNIT. | E183: P.TOTAL
A184: 00004783 (SINAPI) - Pintor | B184: h | C184: 0.4 | D184: 18.61 | E184: =ROUND((C184*D184),2) -> 7.44
A185: 88316 (SINAPI) - Servente | B185: h | C185: 0.015 | D185: 18.79 | E185: =ROUND((C185*D185),2) -> 0.28
A186: SUB-TOTAL | E186: =SUM(E184:E185) -> 7.72
A187: Encargos Sociais | E187: =$B187*E186 -> 0
A189: PRODUÇÃO DA EQUIPE | B189: 1 | C189: CUSTO | E189: =E186+E181+E187 -> 8.9
A190: CUSTO UNITÁRIO DO SERVIÇO | E190: =E189/$B189 -> 8.9
A191: BDI | B191: =B59 -> 0 | E191: =ROUND((E190*$B191),2) -> 0
A192: TOTAL DO SERVIÇO - R$ | E192: =ROUND((E190+E191),2) -> 8.9
A194: COMPOSIÇÃO DE PREÇO UNITÁRIO | D194: =C$3 -> DATA: Out/2021
A195: SERVIÇO: Piso cimentado liso desampenado, traço 1:4 (cimento e areia), espessura 2,0 cm, preparação manual | D195: UNIDADE: | E195: m²
A196: SERVIÇOS - COMPOSIÇÕES AUXILIARES
A197: DESCRIÇÃO | B197: UNIDADE | C197: QUANT. | D197: P.UNIT. | E197: P.TOTAL
A198: 87316 (SINAPI) - Argamassa traço 1:4 (em volume de cimento e areia grossa úmida) para chapisco convencional, preparo mecânico com betoneira 400 L | B198: m3 | C198: 0.02 | D198: 489.91 | E198: =ROUND((D198*C198),2) -> 9.8
A199: SUB-TOTAL | E199: =SUM(E198:E198) -> 9.8
A200: MÃO DE OBRA
A201: DESCRIÇÃO | B201: UNIDADE | C201: QUANT. | D201: P.UNIT. | E201: P.TOTAL
A202: 88309 (SINAPI) - Pedreiro | B202: h | C202: 1 | D202: 26.66 | E202: =ROUND((C202*D202),2) -> 26.66
A203: 88316 (SINAPI) - Servente | B203: h | C203: 1 | D203: 18.79 | E203: =ROUND((C203*D203),2) -> 18.79
A204: SUB-TOTAL | E204: =SUM(E202:E203) -> 45.45
A205: Encargos Sociais | E205: =$B205*E204 -> 0
A207: PRODUÇÃO DA EQUIPE | B207: 1 | C207: CUSTO | E207: =E204+E199+E205 -> 55.25
A208: CUSTO UNITÁRIO DO SERVIÇO | E208: =E207/$B207 -> 55.25
A209: BDI | B209: =B191 -> 0 | E209: =ROUND((E208*$B209),2) -> 0
A210: TOTAL DO SERVIÇO - R$ | E210: =ROUND((E208+E209),2) -> 55.25
A212: COMPOSIÇÃO DE PREÇO UNITÁRIO | D212: =C$3 -> DATA: Out/2021
A213: SERVIÇO: Piso cimentado rústico traço 1:4 (cimento e areia), espessura 2,0cm | D213: UNIDADE: | E213: m²
A214: SERVIÇOS - COMPOSIÇÕES AUXILIARES
A215: DESCRIÇÃO | B215: UNIDADE | C215: QUANT. | D215: P.UNIT. | E215: P.TOTAL
A216: 87316 (SINAPI) - Argamassa traço 1:4 (em volume de cimento e areia grossa úmida) para chapisco convencional, preparo mecânico com betoneira 400 L | B216: m³ | C216: 0.02 | D216: 489.91 | E216: =C216*D216 -> 9.8
A217: SUB-TOTAL | E217: =SUM(E216:E216) -> 9.8
A218: MÃO DE OBRA
A219: DESCRIÇÃO | B219: UNIDADE | C219: QUANT. | D219: P.UNIT. | E219: P.TOTAL
A220: 88309 (SINAPI) - Pedreiro | B220: h | C220: 0.85 | D220: 26.66 | E220: =ROUND((C220*D220),2) -> 22.66
A221: 88316 (SINAPI) - Servente | B221: h | C221: 0.85 | D221: 18.79 | E221: =ROUND((C221*D221),2) -> 15.97
A222: SUB-TOTAL | E222: =SUM(E220:E221) -> 38.63
A223: Encargos Sociais | D223: =$B223 -> 0 | E223: =D223*E222 -> 0
... 52 more rows

Sheet 12.Peç Repos e Mat.
A1: PLANILHA DE ORÇAMENTO ANUAL DOS CUSTOS DE MATERIAIS E PEÇAS DE REPOSIÇÃO
D3: VALOR CONTRATUAL
A4: PARTE HIDRÁULICA
A5: ITEM | B5: DESCRIÇÃO | C5: UNID. | D5: QUANT. | E5: PREÇO UNIT R$ | F5: PREÇO TOTAL R$
A6: 1 | B6: Acoplamento com parafuso bicromatizado e anela de borracha SBR, diâmetro externo 521 mm Ferro Fundido nodular, pintado Primer | C6: un. | D6: 7 | E6: 1154 | F6: =D6*E6 -> 8078
A7: 2 | B7: Acoplamento com parafuso bicromatizado e anela de borracha SBR, diâmetro externo 419 mm Ferro Fundido nodular, pintado Primer | C7: un. | D7: 7 | E7: 726 | F7: =D7*E7 -> 5082
A8: 3 | B8: Acoplamento com parafuso bicromatizado e anela de borracha SBR, diâmetro externo 368 mm Ferro Fundido nodular, pintado Primer | C8: un. | D8: 7 | E8: 562 | F8: =D8*E8 -> 3934
A9: 4 | B9: Adesivo plástico para tubos e conexões (175g) | C9: un. | D9: 80 | E9: 13.05 | F9: =PRODUCT(D9:E9) -> 1044
A10: 5 | B10: 00000318 (SINAPI) - Anel Borracha, para Tubo PVC DEFOFO, DN 150 mm (NBR 7665) | C10: un. | D10: 8 | E10: 20.28 | F10: 162.24
A11: 6 | B11: 00000319 (SINAPI) - Anel Borracha, para Tubo PVC DEFOFO, DN 200 mm (NBR 7665) | C11: un. | D11: 8 | E11: 38.29 | F11: 306.32
A12: 7 | B12: 00000320 (SINAPI) - Anel Borracha, para Tubo PVC DEFOFO, DN 250 mm (NBR 7665) | C12: un. | D12: 8 | E12: 121.74 | F12: 973.92
A13: 8 | B13: 00000314 (SINAPI) - Anel Borracha, para Tubo PVC DEFOFO, DN 300 mm (NBR 7665) | C13: un. | D13: 8 | E13: 186.98 | F13: 1495.84
A14: 9 | B14: 00000329 (SINAPI) - Anel Borracha, para Tubo/Conexão PVC PBA, DN 75 Mm, Para Rede Água | C14: un. | D14: 15 | E14: 11.9 | F14: 178.5
A15: 10 | B15: Anel de borracha Alvenius diâmetro externo 521mm | C15: un. | D15: 20 | E15: 180 | F15: 3600
A16: 11 | B16: Anel de borracha Alvenius diâmetro externo 419mm | C16: un. | D16: 18 | E16: 138 | F16: 2484
A17: 12 | B17: Anel de borracha Alvenius diâmetro externo 368mm | C17: un. | D17: 10 | E17: 95.3 | F17: 953
A18: 13 | B18: Curva 45º com bolsa soldável e ponta lisa PVC IRRIGA-LF JE, Fabric. TIGRE, PN 80, DN 100 | C18: un. | D18: 1 | E18: 25 | F18: 25
A19: 14 | B19: Curva 45º com bolsa soldável e ponta lisa PVC IRRIGA-LF JE, Fabric. TIGRE, PN 80, DN 75 | C19: un. | D19: 1 | E19: 13.46 | F19: 13.46
A20: 15 | B20: Curva 90º com bolsa soldável e ponta lisa PVC IRRIGA-LF JE, Fabric. TIGRE, PN 80, DN 100 | C20: un. | D20: 5 | E20: 28.5 | F20: 142.5
A21: 16 | B21: Curva 90º com bolsa soldável e ponta lisa PVC IRRIGA-LF JE, Fabric. TIGRE, PN 80, DN 75 | C21: un. | D21: 5 | E21: 15.8 | F21: 79
A22: 17 | B22: Fita veda rosca (rolo com 50 m) | C22: un. | D22: 40 | E22: 2.82 | F22: 112.8
A23: 18 | B23: Lubrificante Alvenius (900g) | C23: un. | D23: 10 | E23: 18.5 | F23: 185
A24: 19 | B24: Luva de correr em PVC IRRIGA-LF JE, Fabric. TIGRE, PN 80, DN 75 | C24: un. | D24: 80 | E24: 42 | F24: 3360
A25: 20 | B25: Luva de correr em PVC IRRIGA-LF JE, Fabric. TIGRE, PN 80, DN 100 | C25: un. | D25: 80 | E25: 98 | F25: 7840
A26: 21 | B26: Luva de correr em PVC IRRIGA-LF JE, Fabric. TIGRE, PN 80, DN 150 | C26: un. | D26: 8 | E26: 198 | F26: 1584
A27: 22 | B27: Luva de correr em PVC IRRIGA-LF JE, Fabric. TIGRE, PN 80, DN 200 | C27: un. | D27: 3 | E27: 138 | F27: 414
A28: 23 | B28: Luva de correr em PVC IRRIGA-LF JE, Fabric. TIGRE, PN 80, DN 250 | C28: un | D28: 3 | E28: 242 | F28: 726
A29: 24 | B29: Luva de correr em PVC IRRIGA-LF JE, Fabric. TIGRE, PN 80, DN 300 | C29: un | D29: 3 | E29: 541 | F29: 1623
A30: 25 | B30: 00011045 (SINAPI) - Luva Simples, PVC PBA, JE, DN 75 / DE 85 mm, Para Rede Água (NBR 10351) | C30: un. | D30: 3 | E30: 37.46 | F30: 112.38
A31: 26 | B31: Redução com bolsa soldável em PVC, IRRIGA-LF, Fabric. TIGRE, PN 80, DN 100 x 75 | C31: un. | D31: 3 | E31: 13.49 | F31: 40.47
A32: 27 | B32: 00011378 (SINAPI) Tê de Redução, PVC PBA, BBB, JE, DN 100 X 50 / de 110 X 60 mm, para Rede Água (NBR 10351) | C32: un | D32: 3 | E32: 108.08 | F32: 324.24
A33: 28 | B33: Tê com bolsas soldável e adaptador PBA em PVC IRRIGA-LF, DN 75 x 75 | C33: un | D33: 10 | E33: 24 | F33: 240
A34: 29 | B34: Tê de redução com bolsa soldável e adaptador PBA em PVC, IRRIGA-LF, TIGRE, PN 80, Ø 100x75 | C34: un | D34: 25 | E34: 50 | F34: 1250
A35: 30 | B35: Tê com bolsa soldável em PVC, IRRIGA-LF, Fabric. TIGRE, PN 80, DN 100 | C35: un | D35: 10 | E35: 38.99 | F35: 389.9
A36: 31 | B36: Tubo em PVC IRRIGA-LF JE, Fabric. TIGRE, PN 125, DN 250 | C36: un. | D36: 6 | E36: 1475 | F36: 8850
A37: 32 | B37: Tubo em PVC IRRIGA-LF JE, Fabric. TIGRE, PN 125, DN 300 | C37: un. | D37: 6 | E37: 3422 | F37: 20532
A38: 33 | B38: Tubo em PVC IRRIGA-LF JE, Fabric. TIGRE, PN 80, DN 100 | C38: un. | D38: 8 | E38: 218 | F38: 1744
A39: 34 | B39: Tubo em PVC IRRIGA-LF JE, Fabric. TIGRE, PN 80, DN 150 | C39: un. | D39: 6 | E39: 433 | F39: 2598
A40: 35 | B40: Tubo em PVC IRRIGA-LF JE, Fabric. TIGRE, PN 80, DN 200 | C40: un. | D40: 6 | E40: 952 | F40: 5712
A41: 36 | B41: Tubo em PVC IRRIGA-LF JE, Fabric. TIGRE, PN 80, DN 75 | C41: un. | D41: 15 | E41: 89 | F41: 1335
A42: 38 | B42: Tubo em Alvenius K10 Aço Carbono Galvanizado de 350mm (6m) | C42: un. | D42: 15 | E42: 5060 | F42: 75900
A43: 39 | B43: Tubo em Alvenius K10 Aço Carbono Galvanizado de 400mm (6m) | C43: un. | D43: 20 | E43: 5794 | F43: 115880
A44: 40 | B44: Tubo em Alvenius K10 Aço Carbono Galvanizadode 500mm (6m) | C44: un. | D44: 20 | E44: 7334 | F44: 146680
A45: 41 | B45: 00000047 (SINAPI) - Adaptador, PVC PBA, Bolsa/Rosca, JE, DN 100 / DE 110 mm | C45: un. | D45: 20 | E45: 93.37 | F45: =D45*E45 -> 1867.4
A46: 42 | B46: Adesivo plástico para tubos e conexões (175g) | C46: un. | D46: 5 | E46: 13.05 | F46: 65.25
A47: 43 | B47: 00000311 (SINAPI) - Anel Borracha, para Tubo PVC DEFOFO, DN 100 mm (NBR 7665) | C47: un. | D47: 60 | E47: 11.57 | F47: 694.2
A48: 44 | B48: 00000318 (SINAPI) - Anel Borracha, para Tubo PVC DEFOFO, DN 150 mm (NBR 7665) | C48: un. | D48: 24 | E48: 20.28 | F48: 486.72
A49: 45 | B49: 00000319 (SINAPI) - Anel Borracha, para Tubo PVC DEFOFO, DN 200 mm (NBR 7665) | C49: un. | D49: 24 | E49: 38.29 | F49: 918.96
A50: 46 | B50: 00000320 (SINAPI) - Anel Borracha, para Tubo PVC DEFOFO, DN 250 mm (NBR 7665) | C50: un. | D50: 24 | E50: 121.74 | F50: 2921.76
A51: 47 | B51: 00000314 (SINAPI) - Anel Borracha, para Tubo PVC DEFOFO, DN 300 mm (NBR 7665) | C51: un. | D51: 14 | E51: 186.98 | F51: 2617.72
A52: 48 | B52: 00000309 (SINAPI) - Anel Borracha, para Tubo PVC, Rede Coletor Esgoto, DN 350 mm (NBR 7362) | C52: un. | D52: 14 | E52: 61.52 | F52: 861.28
A53: 49 | B53: 00000329 (SINAPI) - Anel Borracha, para Tubo/Conexão PVC PBA, DN 75 Mm, Para Rede Água | C53: un. | D53: 30 | E53: 11.9 | F53: 357
A54: 50 | B54: Anel interfibra – R PVC / JE PRFV /JE DN 400mm | C54: un. | D54: 5 | E54: 126 | F54: 630
A55: 51 | B55: Anel interfibra – R PVC / JE PRFV /JE DN 500mm | C55: un. | D55: 10 | E55: 159 | F55: 1590
A56: 52 | B56: 00000396 (SINAPI) - Abraçadeira em Aço para Amarração de eletrodutos, Tipo D, com 2" e parafuso de fixação | C56: un | D56: 8 | E56: 3.06 | F56: 24.48
A57: 53 | B57: 00004888 (SINAPI) - Plug ou Bujão de Ferro Galvanizado, de 1/2" | C57: un | D57: 6 | E57: 3.18 | F57: 19.08
A58: 54 | B58: 00004889 (SINAPI) - Plug Ou Bujão de Ferro Galvanizado, de 3/4" | C58: un | D58: 4 | E58: 4.3 | F58: 17.2
A59: 55 | B59: 0001207 (SINAPI) – CAP, PVC PBA, JE, DN 100 / DE 110 mm, para rede de agua (NBR 10351) | C59: un. | D59: 5 | E59: 38.25 | F59: 191.25
A60: 56 | B60: 00001183 (SINAPI) – CAP, PVC PBA, JE, DN 75 / DE 85 mm, para rede de agua (NBR 10351) | C60: un. | D60: 5 | E60: 24.98 | F60: 124.9
A61: 57 | B61: Cola para tubo PVC (850g) | C61: tb. | D61: 10 | E61: 34.9 | F61: 349
A62: 58 | B62: Curva 45º com bolsa soldável e ponta lisa PVC IRRIGA-LF JE, Fabric. TIGRE, PN 80, DN 100 | C62: un. | D62: 7 | E62: 25 | F62: 175
A63: 59 | B63: Curva 45º com bolsa soldável e ponta lisa PVC IRRIGA-LF JE, Fabric. TIGRE, PN 80, DN 75 | C63: un. | D63: 2 | E63: 13.46 | F63: 26.92
A64: 60 | B64: Curva 90º com bolsa soldável e ponta lisa PVC IRRIGA-LF JE, Fabric. TIGRE, PN 80, DN 100 | C64: un. | D64: 6 | E64: 28.5 | F64: 171
A65: 61 | B65: Curva 90º com bolsa soldável e ponta lisa PVC IRRIGA-LF JE, Fabric. TIGRE, PN 80, DN 75 | C65: un. | D65: 3 | E65: 15.8 | F65: 47.4
A66: 62 | B66: 00003075 (SINAPI) – Extremidade PVC PBA, PF, JE, DN 75 / DE 85 mm (NBR 10351) / Extremidade JE DN 75 | C66: un. | D66: 20 | E66: 121.97 | F66: 2439.4
A67: 63 | B67: 00003076 (SINAPI) – Extremidade PVC PBA, PF, JE, DN 100 / DE 110 mm (NBR 10351) / Extremidade JE DN 100 | C67: un. | D67: 3 | E67: 193 | F67: 579
A68: 64 | B68: Fita veda rosca (rolo com 50 m) | C68: un. | D68: 70 | E68: 2.82 | F68: 197.4
A69: 65 | B69: Flange de ferro fundido PN 10 DN 100 | C69: un. | D69: 6 | E69: 188 | F69: 1128
A70: 66 | B70: Flange de ferro fundido PN 10 DN 200 | C70: un. | D70: 4 | E70: 250 | F70: 1000
A71: 67 | B71: Flange liso em aço carbono PN 10 DN 50 | C71: un. | D71: 10 | E71: 38.2 | F71: 382
A72: 68 | B72: Flange liso em aço carbono PN 10 DN 75 | C72: un. | D72: 10 | E72: 101.81 | F72: 1018.1
A73: 69 | B73: Grosa 12" | C73: un. | D73: 3 | E73: 33.6 | F73: 100.8
A74: 70 | B74: Joelho 90º PVC Ø 3/4" x 3/4 Rosca /Rosca TIGRE ou SIMILAR | C74: un. | D74: 6 | E74: 3.7 | F74: 22.2
A75: 71 | B75: Joelho 90º PVC Ø 1” x 3/4 Rosca /Rosca TIGRE ou SIMILAR | C75: un. | D75: 9 | E75: 2.99 | F75: 26.91
A76: 72 | B76: Joelho reduzido 90º PVC Ø 1” x 3/4 PVC TIGRE ou SIMILAR | C76: un. | D76: 9 | E76: 2.99 | F76: 26.91
A77: 73 | B77: Luva de correr em PVC IRRIGA-LF JE, Fabric. TIGRE, PN 80, DN 100 OU SIMILAR | C77: un. | D77: 30 | E77: 98 | F77: 2940
A78: 74 | B78: Luva de correr em PVC IRRIGA-LF JE, Fabric. TIGRE, PN 80, DN 150 OU SIMILAR | C78: un. | D78: 4 | E78: 198 | F78: 792
A79: 75 | B79: Luva de correr em PVC IRRIGA-LF JE, Fabric. TIGRE, PN 80, DN 75 OU SIMILAR | C79: un. | D79: 25 | E79: 42 | F79: 1050
A80: 76 | B80: 00003838 (SINAPI) - Luva de correr DEFOFO, PVC, JE, PN 125, DN 150 | C80: un. | D80: 2 | E80: 136.21 | F80: 272.42
A81: 77 | B81: 00003844 (SINAPI) - Luva de correr DEFOFO, PVC, JE, PN 125, DN 200 | C81: un. | D81: 2 | E81: 242.96 | F81: 485.92
A82: 78 | B82: 00003839 (SINAPI) - Luva de correr DEFOFO, PVC, JE, PN 125, DN 250 | C82: un. | D82: 2 | E82: 442.54 | F82: 885.08
A83: 79 | B83: 00003837 (SINAPI) – Luva Simples, PVC PBA, JE, DN 100 / DE 110 mm, Para Rede Água (NBR 10351) / Luva mista soldável x bolsa elástica em PVC IRRIGA-LF, Fabric. TIGRE, PN 80, DN 100 | C83: un. | D83: 24 | E83: 53.16 | F83: 1275.84
A84: 80 | B84: Luva mista soldável x bolsa elástica em PVC IRRIGA-LF, Fabric. TIGRE, PN 80, DN 150 | C84: un. | D84: 12 | E84: 142 | F84: 1704
A85: 81 | B85: 00011045 (SINAPI) – Luva Simples, PVC PBA, JE, DN 75 / De 85 mm, para Rede Água (NBR 10351) / Luva mista soldável x bolsa elástica em PVC IRRIGA-LF, Fabric. TIGRE, PN 80, DN 75 | C85: un. | D85: 4 | E85: 37.46 | F85: 149.84
A86: 82 | B86: Luva de redução 150mm x 100mm | C86: un. | D86: 3 | E86: 43.9 | F86: 131.7
A87: 83 | B87: 00037459 (SINAPI) – Mangueira Cristal, lisa, PVC Transparente, 3/4" x 2 mm (Peça com 20mt) | C87: pç | D87: 8 | E87: 135.6 | F87: 1084.8
A88: 84 | B88: Niple em aço galvanizado Æ ½” rosca bsp – fab. tupy | C88: un | D88: 6 | E88: 4.58 | F88: 27.48
A89: 85 | B89: 00004181 (SINAPI) – Niple de Ferro Galvanizado, com rosca BSP, DE 2" | C89: un | D89: 10 | E89: 27.12 | F89: 271.2
A90: 86 | B90: 00004182 (SINAPI) – Niple de Ferro Galvanizado, com rosca BSP, DE 3" | C90: un | D90: 10 | E90: 67.52 | F90: 675.2
A91: 87 | B91: 00004183 (SINAPI) – Niple de Ferro Galvanizado, com rosca BSP, DE 4" | C91: un | D91: 5 | E91: 108.71 | F91: 543.55
A92: 88 | B92: Redução com bolsa soldável em PVC, IRRIGA-LF, Fabric. TIGRE, PN 80, DN 100 x 75 | C92: un. | D92: 10 | E92: 13.49 | F92: 134.9
A93: 89 | B93: Registro de esfera 1/2", rosca BSP, corpo de bronze | C93: un. | D93: 8 | E93: 28.44 | F93: 227.52
A94: 90 | B94: 00006016 (SINAPI) – Registro Gaveta Bruto em Latão Forjado, Bitola 3/4" (REF 1509) | C94: un. | D94: 6 | E94: 30.98 | F94: 185.88
A95: 91 | B95: 00006020 (SINAPI) – Registro Gaveta Bruto em Latão Forjado, Bitola 1/2" (REF 1509) | C95: un. | D95: 6 | E95: 29.37 | F95: 176.22
A96: 92 | B96: Registro PN 30 3" LF LF BSP TP | C96: un | D96: 4 | E96: 534.1 | F96: 2136.4
A97: 93 | B97: Tê com bolsas soldável em PVC IRRIGA-LF, fabric. TIGRE, PN 80, DN 100 | C97: un. | D97: 8 | E97: 38.99 | F97: 311.92
A98: 94 | B98: Tê de redução com bolsa soldável e adaptador PBA em PVC IRRIGA-LF, fabric. TIGRE, PN 80, DN 100 x 75 | C98: un. | D98: 8 | E98: 50 | F98: 400
A99: 95 | B99: Tê de redução com bolsas soldável e adaptador PBA em PVC IRRIGA-LF, fabric. TIGRE, PN 80, DN 100 x 50 | C99: un. | D99: 8 | E99: 51.65 | F99: 413.2
A100: 96 | B100: 00006294 (SINAPI) – Tê de Ferro Galvanizado, DE 1/2" | C100: un | D100: 2 | E100: 7.27 | F100: 14.54
A101: 97 | B101: Tê FE-FE Ø 100mm – flangeado – 08 furos -CMC | C101: un. | D101: 3 | E101: 500 | F101: 1500
A102: 98 | B102: 00006300 (SINAPI) – Tê de ferro galvanizado, de 4" | C102: un. | D102: 5 | E102: 239.98 | F102: 1199.9
A103: 99 | B103: Tê PVC de FoFo DN 150 | C103: un. | D103: 5 | E103: 198 | F103: 990
A104: 100 | B104: 00007696 (SINAPI) – Tubo Aço Galvanizado Com Costura, Classe Média, DN 2", e = *3,65* Mm, peso *5,10* kg/m (NBR 5580) 6m | C104: un. | D104: 2 | E104: 620.88 | F104: 1241.76
A105: 101 | B105: 00007694 (SINAPI) – Tubo Aço Galvanizado Com Costura, Classe Média, DN 3", e=*4,05* mm, Peso *8,47* kg/m (NBR 5580) 6m | C105: un. | D105: 2 | E105: 1036.86 | F105: 2073.72
A106: 102 | B106: Tubo em ferro fundido DN 100 PN 10 Ponta Bolsa - 6m | C106: un. | D106: 1 | E106: 2200 | F106: 2200
A107: 103 | B107: Tubo de ferro fundido DN 200 PN 10 Ponta Bolsa - 6m | C107: un. | D107: 1 | E107: 2950 | F107: 2950
A108: 104 | B108: 00009856 (SINAPI) – Tubo PVC, Roscável, 1/2", Água Fria Predial - 6m | C108: un. | D108: 4 | E108: 51.18 | F108: 204.72
A109: 105 | B109: Tubo de PVC branco Ø 3/4” – TIGRE ou SIMILAR - 6m | C109: un. | D109: 6 | E109: 69 | F109: 414
A110: 106 | B110: 00009866 (SINAPI) – Tubo PVC, Roscável, 1", água fria predial | C110: un. | D110: 6 | E110: 140.64 | F110: 843.84
A111: 107 | B111: Tubo em PVC IRRIGA-LF JE, Fabric. TIGRE, PN 125, DN 150 | C111: un. | D111: 2 | E111: 473.2 | F111: 946.4
A112: 108 | B112: Tubo em PVC IRRIGA-LF JE, Fabric. TIGRE, PN 125, DN 200 | C112: un. | D112: 2 | E112: 1588.2 | F112: 3176.4
A113: 109 | B113: Tubo em PVC IRRIGA-LF JE, Fabric. TIGRE, PN 125, DN 250 | C113: un. | D113: 3 | E113: 1475 | F113: 4425
A114: 110 | B114: Tubo em PVC IRRIGA-LF JE, Fabric. TIGRE, PN 125, DN 300 | C114: un. | D114: 2 | E114: 3422 | F114: 6844
A115: 111 | B115: Tubo em PVC IRRIGA-LF JE, Fabric. TIGRE, PN 125, DN 350 | C115: un. | D115: 2 | E115: 4662 | F115: 9324
A116: 112 | B116: Tubo em PVC IRRIGA-LF JE, Fabric. TIGRE, PN 40, DN 100 | C116: un. | D116: 14 | E116: 126.65 | F116: 1773.1
A117: 113 | B117: Tubo em PVC IRRIGA-LF JE, Fabric. TIGRE, PN 40, DN 75 | C117: un. | D117: 10 | E117: 75.85 | F117: 758.5
A118: 114 | B118: Tubo em PVC IRRIGA-LF JE, Fabric. TIGRE, PN 60, DN 100 | C118: un. | D118: 14 | E118: 224.26 | F118: 3139.64
A119: 115 | B119: Tubo em PVC IRRIGA-LF JE, Fabric. TIGRE, PN 60, DN 150 | C119: un. | D119: 8 | E119: 416 | F119: 3328
A120: 116 | B120: Tubo em PVC IRRIGA-LF JE, Fabric. TIGRE, PN 60, DN 200 | C120: un. | D120: 8 | E120: 883.8 | F120: 7070.4
A121: 117 | B121: Tubo em PVC IRRIGA-LF JE, Fabric. TIGRE, PN 60, DN 250 | C121: un. | D121: 5 | E121: 1490.2 | F121: 7451
A122: 118 | B122: Tubo em PVC IRRIGA-LF JE, Fabric. TIGRE, PN 60, DN 75 | C122: un. | D122: 10 | E122: 86.92 | F122: 869.2
A123: 119 | B123: Tubo em PVC IRRIGA-LF JE, Fabric. TIGRE, PN 80, DN 100 | C123: un. | D123: 40 | E123: 218 | F123: 8720
A124: 120 | B124: Tubo em PVC IRRIGA-LF JE, Fabric. TIGRE, PN 80, DN 150 | C124: un. | D124: 12 | E124: 433 | F124: 5196
A125: 121 | B125: Tubo em PVC IRRIGA-LF JE, Fabric. TIGRE, PN 80, DN 200 | C125: un. | D125: 3 | E125: 952 | F125: 2856
A126: 122 | B126: Tubo em PVC IRRIGA-LF JE, Fabric. TIGRE, PN 80, DN 75 | C126: un. | D126: 20 | E126: 89 | F126: 1780
A127: 123 | B127: Tubo PVC R (Fibra de vidro) DN 400 PN 10 fabricante: INTERFIBRA | C127: un. | D127: 3 | E127: 1105.66 | F127: 3316.98
A128: 124 | B128: Tubo PVC R (Fibra de vidro) DN 500 PN 10 fabricante: INTERFIBRA | C128: un. | D128: 4 | E128: 1342.93 | F128: 5371.72
A129: TOTAL MATERIAL HIDRÁULICO | F129: =SUM(F6:F128) -> 553315.7
A130: TOTAL MATERIAL HIDRÁULICO COM BDI | E130: 0 | F130: =F129*E130 -> 0
A132: PARTE ELÉTRICA
A133: ITEM | B133: DESCRIÇÃO | C133: UNID. | D133: QUANT. | E133: VALOR | F133: PREÇO TOTAL R$
A134: 1 | B134: 00039266 (SINAPI) – Cabo Multipolar de Cobre, Flexível, Classe 4 ou 5, Isolação em HEPR, Cobertura em PVC-ST2, Antichama BWF-B, 0,6/1 KV, 3 Condutores de 70 mm²(3x70mm²) | C134: m | D134: 15 | E134: 86.5 | F134: =PRODUCT(D134:E134) -> 1297.5
A135: 2 | B135: 00001019 (SINAPI) – Cabo de Cobre, Flexível, Classe 4 ou 5, Isolação em PVC/A, Antichama BWF-B, Cobertura PVC-ST1, Antichama BWF-B, 1 Condutor, 0,6/1 kV, Seção Nominal 35 mm² | C135: m | D135: 15 | E135: 35.66 | F135: 534.9
A136: 3 | B136: 00039261 (SINAPI) – Cabo Multipolar de Cobre, Flexível, Classe 4 ou 5, Isolação em HEPR, Cobertura em PVC-ST2, Antichama BWF-B, 0,6/1 KV, 3 Condutores de 10 mm² (3x10mm²) | C136: m | D136: 15 | E136: 34.57 | F136: 518.55
A137: 4 | B137: Contator tripolar a seco: bobina em 220vca 60Hz, classe de tensão: 660v, corrente nominal 63A, contatos auxiliares 1 NA+1NF, ref. Antiga LC1 - D633, ref, atual LC 1 D 5011 M6 (TELEMECANIQUE) | C137: un. | D137: 10 | E137: 404.61 | F137: 4046.1
A138: 5 | B138: Relé térmico: regulagem 38-50 A; contatos auxiliares 1NA + 1NF, tipo LR1 - D 63357 (TELEMECANIQUE) | C138: un. | D138: 2 | E138: 242.67 | F138: 485.34
A139: 6 | B139: Fusível limitador de corrente NH: corrente nominal 100A, tamanho 00, com base 3NH 3020, tipo 3NA 1022 (SIEMENS) | C139: un. | D139: 20 | E139: 21.16 | F139: 423.2
A140: 7 | B140: Transformador de corrente em policarbonato: relação 150-5A, tipo box-74A (BLINDEX) | C140: un. | D140: 3 | E140: 86.64 | F140: 259.92
A141: 8 | B141: Amperímetro sistema ferro móvel: moldura 96x96mm, escala 0-150/300A, ligação a TC: 150-5A (H&B) | C141: un. | D141: 5 | E141: 99 | F141: 495
A142: 9 | B142: Voltímetro sistema ferro móvel: moldura 96x96mm, escala 0-500V, ligação direta 380V (H&B) | C142: un. | D142: 7 | E142: 74.9 | F142: 524.3
A143: 10 | B143: Totalizador de hora de 6 dígitos: leitura máxima 99999,9, moldura 72x72 mm, tensão nominal 220V 60 Hz, tipo DH (COEL) | C143: un. | D143: 15 | E143: 149.9 | F143: 2248.5
A144: 11 | B144: Chave comutadora voltimétrica: corrente nominal 16A, 4 posições 0 - AB - BC - CA, esquema A011, tipo C11 - A011/16E (SOLENOID) | C144: un. | D144: 2 | E144: 67.2 | F144: 134.4
A145: 12 | B145: 00039266 (SINAPI) – Cabo Multipolar de Cobre, Flexível, Classe 4 ou 5, Isolação em HEPR, Cobertura em PVC-ST2, Antichama BWF-B, 0,6/1 KV, 3 Condutores de 70 mm² (3x70mm²) | C145: m | D145: 15 | E145: 86.5 | F145: 1297.5
A146: 13 | B146: 00001019 (SINAPI) – Cabo de Cobre, Flexível, Classe 4 ou 5, Isolação em PVC/A, Antichama BWF-B, Cobertura PVC-ST1, Antichama BWF-B, 1 Condutor, 0,6/1 kV, Seção Nominal 35 mm² | C146: m | D146: 15 | E146: 35.66 | F146: =PRODUCT(D146:E146) -> 534.9
A147: 14 | B147: 00039262 (SINAPI) – Cabo Multipolar de Cobre, Flexível, Classe 4 ou 5, Isolação em HEPR, Cobertura em PVC-ST2, Antichama BWF-B, 0,6/1 KV, 3 Condutores de 16 mm² (3X16mm²) | C147: m | D147: 15 | E147: 54.05 | F147: =PRODUCT(D147:E147) -> 810.75
A148: 15 | B148: Contator tripolar a seco: bobina em 220vca 60Hz, classe de tensão: 660v, corrente nominal 80A, contatos auxiliares 1 NA+1NF, ref. Antiga LC1 - D803, ref, atual LC 1 D 6511 M6 (TELEMECANIQUE) | C148: un. | D148: 10 | E148: 661.5 | F148: 6615
A149: 16 | B149: Relé térmico: regulagem 57-66 A; contatos auxiliares 1NA + 1NF, tipo LR1 - D 63361 (TELEMECANIQUE) | C149: un. | D149: 4 | E149: 222 | F149: 888
A150: 17 | B150: Fusível limitador de corrente NH: corrente nominal 125A, tamanho 00, com base 3NH 3020, tipo 3NA 1022 (SIEMENS) | C150: un. | D150: 5 | E150: 49.25 | F150: 246.25
A151: 18 | B151: Transformador de corrente em policarbonato: relação 150-5A, tipo box-74A(BLINDEX) | C151: un. | D151: 3 | E151: 86.64 | F151: 259.92
A152: 19 | B152: Amperímetro sistema ferro móvel: moldura 96x96mm, escala 0-150/300A, ligação a TC: 150-5A(H&B) | C152: un. | D152: 5 | E152: 99 | F152: 495
A153: 20 | B153: Voltímetro sistema ferro móvel: moldura 96x96mm, escala 0-500V, ligação direta 380V (H&B) | C153: un. | D153: 7 | E153: 74.9 | F153: 524.3
A154: 21 | B154: Totalizador de hora de 6 dígitos: leitura máxima 99999,9, moldura 72x72 mm, tensão nominal 220V 60 Hz, tipo DH(COEL) | C154: un. | D154: 10 | E154: 149.9 | F154: 1499
A155: 22 | B155: Abraçadeira em nylon DN 104 x 2,65 mm | C155: un. | D155: 100 | E155: 3.8 | F155: 380
A156: 23 | B156: Abraçadeira em nylon DN 161 x 13,8 mm | C156: un. | D156: 100 | E156: 2.96 | F156: 296
A157: 24 | B157: Análises de óleo dos transformadores (análise de gases dissolvidos e análise físico-química). | C157: un. | D157: 30 | E157: 189.1 | F157: 5673
A158: 25 | B158: 00007307 (SINAPI) – Fundo Anticorrosivo Para Metais Ferrosos (Zarcão) | C158: lt | D158: 3 | E158: 31.98 | F158: 95.94
A159: 26 | B159: Base para Fusível Diazed 2A | C159: un. | D159: 3 | E159: 27.19 | F159: 81.57
A160: 27 | B160: Base para Fusível NH 100A | C160: un. | D160: 10 | E160: 36.37 | F160: 363.7
A161: 28 | B161: Bloco de contatos auxiliares, para contatos tripolares, LC1-FG43 ref. LA1-F221-2NA + 2NF, fabricante TELEMECANIQUE | C161: un. | D161: 1 | E161: 108.94 | F161: 108.94
A162: 29 | B162: Blocos de contatos auxiliares instantâneos, contatos auxiliares, 4NA, tipo LA-D40, fabricante TELEMECANIQUE | C162: un. | D162: 1 | E162: 48.64 | F162: 48.64
A163: 30 | B163: Blocos de contatos temporizados, contatos auxiliares, 1NA + 1NF com ajuste de 10 a 180 segundos, tipo LA2-D24, fabricante TELEMECANIQUE | C163: un. | D163: 1 | E163: 510.81 | F163: 510.81
A164: 31 | B164: Bóia superior de 15 A | C164: un. | D164: 2 | E164: 56.17 | F164: 112.34
A165: 32 | B165: Botoeira para acionamento de motor (liga / desliga) COD. XALBOZBA31BC442 fabricante TELEMECANIQUE | C165: un. | D165: 6 | E165: 28.5 | F165: 171
A166: 33 | B166: 00000977 (SINAPI) – Cabo de Cobre, Flexível, Classe 4 ou 5, Isolação em PVC/A, Antichama BWF-B, Cobertura PVC-ST1, Antichama BWF-B, 1 Condutor, 0,6/1 KV, Seção Nominal 70 mm² | C166: un. | D166: 15 | E166: 70.41 | F166: 1056.15
A167: 34 | B167: 00000980 (SINAPI) – Cabo de Cobre, Flexível, Classe 4 ou 5, Isolação em PVC/A, Antichama BWF-B, 1 Condutor, 450/750 V, Seção Nominal 10 mm² | C167: m | D167: 30 | E167: 10.16 | F167: 304.8
A168: 35 | B168: 00000979 (SINAPI) – Cabo de Cobre, Flexível, Classe 4 ou 5, Isolação em PVC/A, Antichama BWF-B, 1 Condutor, 450/750 V, Seção Nominal 16 mm² | C168: m | D168: 30 | E168: 15.65 | F168: 469.5
A169: 36 | B169: 00001014 (SINAPI) – Cabo de Cobre, Flexível, Classe 4 ou 5, Isolação em PVC/A, Antichama BWF-B, 1 Condutor, 450/750 V, Seção Nominal 2,5 mm² | C169: m | D169: 30 | E169: 2.38 | F169: 71.4
A170: 37 | B170: 00039234 (SINAPI) – Cabo de Cobre, Flexível, Classe 4 ou 5, Isolação em PVC/A, Antichama BWF-B, 1 Condutor, 450/750 V, Seção Nominal 50 mm² | C170: m | D170: 30 | E170: 50.69 | F170: 1520.7
A171: 38 | B171: Capacitor de 7,5 kvar Fab. Laelc (inducon) | C171: un. | D171: 4 | E171: 203.05 | F171: 812.2
A172: 39 | B172: Capacitor de 10 kvar Fab. Laelc (inducon) | C172: un. | D172: 8 | E172: 266.23 | F172: 2129.84
A173: 40 | B173: Capacitor de 12,5 kvar Fab. Laelc (inducon) | C173: un. | D173: 4 | E173: 266.9 | F173: 1067.6
A174: 41 | B174: Capacitor ref. 270/324-110/220 VCA | C174: un. | D174: 4 | E174: 15.4 | F174: 61.6
A175: 42 | B175: Contator auxiliar com bobina 220V-60Hz tipo CA2DN140 fabricante TELEMECANIQUE | C175: un. | D175: 5 | E175: 99.49 | F175: 497.45
A176: 43 | B176: 00001629 (SINAPI) – Contator Tripolar, Corrente de *500* A, Tensão Nominal De *500* V, Categoria AC- 2 e AC-3 / Contator tripolar a a vácuo | C176: un. | D176: 1 | E176: 11108.33 | F176: 11108.33
A177: 44 | B177: Contator IC 2510 M7 1NA + 1 NF | C177: un. | D177: 10 | E177: 115.98 | F177: 1159.8
A178: 45 | B178: Contator auxiliar CA 2 DN 40 M6 | C178: un. | D178: 10 | E178: 100.39 | F178: 1003.9
A179: 46 | B179: Contator principal IC 5011 M7 | C179: un. | D179: 4 | E179: 329.59 | F179: 1318.36
A180: 47 | B180: Contator principal IC 1 D 6511 M7 | C180: un. | D180: 1 | E180: 450 | F180: 450
A181: 48 | B181: Disjuntor termomagnético tripolar, de 10 A, para operação em 220V tipo 5SP3152, fabricação SIEMENS | C181: un. | D181: 3 | E181: 38.95 | F181: 116.85
A182: 49 | B182: Disjuntor termomagnético tripolar, de 15 A, para operação em 380V tipo 5SK77316, fabricação SIEMENS | C182: un. | D182: 3 | E182: 40.25 | F182: 120.75
A183: 50 | B183: Disjuntor termomagnético tripolar, de 16 A, para operação em 220V tipo 5SP3162, fabricação SIEMENS | C183: un. | D183: 3 | E183: 46 | F183: 138
A184: 51 | B184: Disjuntor termomagnético tripolar, de 30 A, para operação em 380V tipo 5SK77332, fabricação SIEMENS | C184: un. | D184: 2 | E184: 46 | F184: 92
A185: 52 | B185: Disjuntor termomagnético de 100A | C185: un. | D185: 3 | E185: 139 | F185: 417
A186: 53 | B186: 00002374 (SINAPI) – Disjuntor Termomagnético Tripolar 150 A / 600 V, Tipo FXD / ICC - 35 KA | C186: un. | D186: 4 | E186: 412.72 | F186: 1650.88
A187: 54 | B187: Disjuntor termomagnético de 80A | C187: un. | D187: 1 | E187: 139 | F187: 139
A188: 55 | B188: Elo fusível 3H | C188: un. | D188: 3 | E188: 5.8 | F188: 17.4
A189: 56 | B189: Elo fusível 5H | C189: un. | D189: 4 | E189: 5.8 | F189: 23.2
A190: 57 | B190: 00000404 (SINAPI) – Fita Isolante De Borracha Autofusão, Uso até 69 KV (Alta Tensão) | C190: un. | D190: 20 | E190: 11.9 | F190: 238
A191: 58 | B191: Fita isolante - 10m | C191: un. | D191: 35 | E191: 3.9 | F191: 136.5
A192: 59 | B192: Fusível de proteção Diazed de 2 A | C192: un. | D192: 50 | E192: 5.88 | F192: 294
A193: 60 | B193: Fusível de proteção NH 125A | C193: un. | D193: 5 | E193: 30 | F193: 150
A194: 61 | B194: Fusível de proteção NH 100A | C194: un. | D194: 10 | E194: 21.16 | F194: 211.6
A195: 62 | B195: 0003295 (SINAPI) – 0003295 Fusível NH *36* a 80 Amperes, Tamanho 00, Capacidade de Interrupção de 120 KA Tensão Nominal de 500 V (80A) | C195: un. | D195: 8 | E195: 27.24 | F195: 217.92
A196: 63 | B196: 0003295 (SINAPI) – Fusível NH *36* a 80 Amperes, Tamanho 00, Capacidade de Interrupção de 120 KA Tensão Nominal de 500 V (50A) | C196: un. | D196: 15 | E196: 27.24 | F196: 408.6
A197: 64 | B197: Fusível NH Ultrarrápido 50A | C197: un. | D197: 4 | E197: 49.82 | F197: 199.28
A198: 65 | B198: Indicador digital de nível COD. 580-ID/ 85-264 Vac fabricante NIVETEC | C198: un. | D198: 1 | E198: 1944.27 | F198: 1944.27
A199: 66 | B199: 00038070 (SINAPI) – Interruptores Paralelos (2 módulos) 10A, 250V, Conjunto Montado Para Embutir 4" X 2" (PLACA + SUPORTE + MODULOS) | C199: un. | D199: 3 | E199: 13.83 | F199: 41.49
A200: 67 | B200: 00038062 (SINAPI) – Interruptor Simples 10A, 250V, Conjunto Montado Para Embutir 4" X 2" (PLACA + SUPORTE + MODULO) | C200: un. | D200: 2 | E200: 5.83 | F200: 11.66
A201: 68 | B201: 00003753 (SINAPI) – Lâmpada Fluorescente Tubular T10, de 20 ou 40 W, Bivolt | C201: un. | D201: 10 | E201: 9.05 | F201: 90.5
A202: 69 | B202: Lâmpada vapor mercúrio, 80 W-220V, base E-27 | C202: un. | D202: 20 | E202: 16.75 | F202: 335
... 501 more rows

Sheet 13. Orçam. de Forn. Veic. e Maq
A1: PLANILHA DE FORNECIMENTOS DE VEÍCULOS E MÁQUINAS
A3: RESUMO | C3: Unidade | D3: Quant. | E3: R$ | F3: Total
A4: 1 | B4: Veículos, Motocicletas e Máquinas
A5: 1.1 | B5: Veículo hatch, 1.0 flex, com ar condicionado (72Cv) | C5: mês | D5: 48 | E5: ='13.2.CPU Veíc.'!I44 -> 3730.86 | F5: =D5*E5 -> 179081.28
A6: 1.2 | B6: Veículo Utilitário, Pick-up 0,5 t, 1.4 flex cabine estendida | C6: mês | D6: 36 | E6: ='13.2.CPU Veíc.'!I94 -> 4439.1 | F6: 159807.6
A7: 1.3 | B7: Motocicleta Tipo Cross a partir 125cc | C7: mês | D7: 132 | E7: ='13.2.CPU Veíc.'!I142 -> 987.7 | F7: 130376.4
A8: 1.4 | B8: Máquina retroescavadeira | C8: h | D8: 2100 | E8: ='13.1.Máq.'!C4 -> 136.77 | F8: 287217
A9: 1.5 | B9: Caminhão com Guindaste | C9: h | D9: 320 | E9: ='13.1.Máq.'!C8 -> 213.54 | F9: 68332.8
A10: 1.6 | B10: Caminhão Caçamba | C10: h | D10: 320 | E10: ='13.1.Máq.'!C12 -> 148.97 | F10: 47670.4
A11: 1.7 | B11: Caminhão Carroceria Fixa | C11: h | D11: 1440 | E11: ='13.1.Máq.'!C24 -> 99.29 | F11: 142977.6
A12: 1.8 | B12: Caminhão Pipa | C12: h | D12: 320 | E12: ='13.1.Máq.'!C16 -> 208.13 | F12: 66601.6
A13: 1.9 | B13: Escavadeira hidráulica | C13: h | D13: 1050 | E13: ='13.1.Máq.'!C20 -> 227.64 | F13: 239022
A14: SUB TOTAL VEÍCULOS, MOTOCICLETAS E MÁQUINAS | F14: =SUM(F5:F13) -> 1321086.68

Sheet 13.1.Máq.
A1: PLANILHA DE ORÇAMENTO DO CUSTO DE HORA MÁQUINA
A2: MÁQUINA - Retroescavadeira
A3: DESCRIÇÃO | C3: R$/H
A4: 5678 (SINAPI) Retroescavadeira com carregadeira sobre pneus, com conversor de torque incluindo manutenção, operação e combustível. | C4: 136.77
A6: MÁQUINA - Caminhão com guindaste
A7: DESCRIÇÃO | C7: R$/H
A8: 5928 (SINAPI) Guindaste tipo munck Cap. 6,2 T montado em caminhão carroceria (locação com operador, combutível e manutenção). | C8: 213.54
A10: MÁQUINA - Caminhão Caçamba
A11: DESCRIÇÃO | C11: R$/H
A12: 67826 (SINAPI) Caminhão Basculante com capacidade de 6 m³/11130 Kg. | C12: 148.97
A14: MÁQUINA - Caminhão Pipa
A15: DESCRIÇÃO | C15: R$/H
A16: 6259 (SINAPI) - Caminhão Pipa 6.000 L, Peso Bruto Total 13.000 kg, Distância Entre Eixos 4,80 m, Potência 189 cv, inclusive Tanque De Aço Para Transporte De Água, Capacidade 6 M3 - CHP Diurno | C16: 208.13
A18: MÁQUINA - Escavadeira Hidráulica
A19: DESCRIÇÃO | C19: R$/H
A20: 88907 (SINAPI) - Escavadeira hidráulica sobre esteira, 146 a 169 HP, cap. 2,0 m³, incluindo operação e manutenção. | C20: 227.64
A22: MÁQUINA - Caminhão Carroceria Fixa
A23: DESCRIÇÃO | C23: R$/H
A24: 53797 (SINAPI) - Aluguel caminhão carroc. Fixa toco. PBT 16000 Kg carga útil 10.685 Kg. | C24: 99.29

Sheet 13.2.CPU Veíc.
A1: COMPOSIÇÃO DE CUSTO UNITÁRIO MENSAL PARA VEÍCULOS
A2: Composição dos Custos de Veículo 1.0 flex, com ar condicionado (72Cv) ano Fab. /2016
A3: A - Depreciação Mensal do Equipamento / Veículo
A4: A.1 | B4: Preço de Aquisição | H4: A.1 = | I4: 64969
A5: A.2 | B5: Utilização prevista (anos) | H5: A.2 = | I5: 3
A6: A.3 | B6: Recuperação de capital na venda do bem usado (%) | H6: A.3 = | I6: 0.4
A7: A.4 | B7: Custo Mensal | C7: A.1 - (A.3 x A.1)/A.2 | H7: A4 = | I7: =+((I4-(I4*I6))/(12*I5)) -> 1082.82
A10: B - Juros pelo Capital Empregado
A11: B.1 | B11: Taxa mensal de juros (%) | H11: B.1 = | I11: =4.15/100/12 -> 0.0035
A12: B.2 | B12: Juros s/a depreciação / aluguel (B.1xA.4) | H12: B.2 = | I12: =I11*I7 -> 3.79
A14: C - Conservação e Manutenção
A15: C.1 | B15: Taxa de gastos sobre a deprec. Mensal inclusive seguros (%) | H15: C.1 = | I15: 0.67
A16: C.2 | B16: Incidência mensal ( C.1x A.4) | H16: C.2 = | I16: =I15*I7 -> 725.49
A17: Gastos Mensais e Operação do Equipamento / Veículo
A18: D - Combustível
A19: D - 1 | B19: Franquia mensal (km) por veículo | H19: D.1 = | I19: 3000
A20: D - 2 | B20: Preço litro de combustível | H20: D.2 = | I20: 6.87
A21: D - 3 | B21: Número km rodados c/ 1litro de combustível | H21: D.3 = | I21: 12
A22: D - | B22: Combustível | C22: (D.1/D.3) x D.2 | H22: D = | I22: =(I19/I21)*I20 -> 1717.5
A25: E - Lubrificantes
A26: E.1 - | B26: Quilometragem do contrato | H26: E.1 = | I26: =I19*12 -> 36000
A27: E.2 - | B27: Franquia da troca de óleo (km) | H27: E.2 = | I27: 5000
A28: E.3 - | B28: Preço do litro de óleo | H28: E.3 = | I28: 21
A29: E.4 - | B29: Quantidade de litros de óleo por troca | H29: E.4 = | I29: 3.5
A30: E.5 - | B30: Quantidade de dias do contrato | H30: E.5 = | I30: 365
A31: E - | B31: Lubrificantes | C31: (E.1xE.3xE.4x30)/(E.2xE.5) | H31: E = | I31: =(I26*I28*I29*30)/(I27*I30) -> 43.5
A34: F - Pneus / Câmaras
A35: F.1 - | B35: Quantidades de pneus | H35: F.1 = | I35: 5
A36: F.2 - | B36: Vida do pneu em km | H36: F.2 = | I36: 30000
A37: F.3- | B37: Quilometragem do contrato | H37: F.3 = | I37: 36000
A38: F.4 - | B38: Preço do pneu | H38: F.4 = | I38: 319.9
A39: F.5 - | B39: Quantidade de dias do contrato | H39: F.5 = | I39: 365
A40: F - | B40: Pneus/Câmaras | C40: (F.1xF.3xF.4x30)/(F.2xF.5) | H40: F. = | I40: =(I35*I37*I38*30)/(I36*I39) -> 157.76
A43: G = Outros | H43: G = | I43: 0
A44: H = A + B + C + D + E + F + G | H44: H = | I44: =I7+I12+I16+I22+I31+I40+I43 -> 3730.86
A45: TOTAL GERAL COM BDI | C45: Fator/BDI | E45: 0 | I45: =I44*E45 -> 0
A47: I = Custo Direto por Km Rodado | C47: H/3.000 | H47: I = | I47: =I45/I19 -> 0
A52: Composição dos Custos de Veículo utilitário 0,5 t.,1.4 flex Pick-up ano fab.2013
A53: A - Depreciação Mensal do Equipamento / Veículo
A54: A.1 | B54: Preço de Aquisição | H54: A.1 = | I54: 84764
A55: A.2 | B55: Utilização prevista (anos) | H55: A.2 = | I55: 3
A56: A.3 | B56: Recuperação de capital na venda do bem usado (%) | H56: A.3 = | I56: 0.4
A57: A.4 | B57: Custo Mensal | C57: A.1 - (A.3 x A.1)/A.2 | H57: A4 = | I57: =+((I54-(I54*I56))/(12*I55)) -> 1412.73
A60: B - Juros pelo Capital Empregado
A61: B.1 | B61: Taxa mensal de juros (%) | H61: B.1 = | I61: =4.15/100/12 -> 0.0035
A62: B.2 | B62: Juros s/a depreciação / aluguel (B.1xA.4) | H62: B.2 = | I62: =I61*I57 -> 4.94
A64: C - Conservação e Manutenção
A65: C.1 | B65: Taxa de gastos sobre a deprec. Mensal inclusive seguros (%) | H65: C.1 = | I65: 0.67
A66: C.2 | B66: Incidência mensal ( C.1x A.4) | H66: C.2 = | I66: =I65*I57 -> 946.53
A67: Gastos Mensais e Operação do Equipamento / Veículo
A68: D - Combustível
A69: D - 1 | B69: Franquia mensal (km) por veículo | H69: D.1 = | I69: 3000
A70: D - 2 | B70: Preço litro de combustível | H70: D.2 = | I70: =I20 -> 6.87
A71: D - 3 | B71: Número km rodados c/ 1litro de combustível | H71: D.3 = | I71: 11
A72: D - | B72: Combustível | C72: (D.1/D.3) x D.2 | H72: D = | I72: =(I69/I71)*I70 -> 1873.64
A75: E - Lubrificantes
A76: E.1 - | B76: Quilometragem do contrato | H76: E.1 = | I76: =I69*12 -> 36000
A77: E.2 - | B77: Franquia da troca de óleo (km) | H77: E.2 = | I77: 5000
A78: E.3 - | B78: Preço do litro de óleo | H78: E.3 = | I78: 21
A79: E.4 - | B79: Quantidade de litros de óleo por troca | H79: E.4 = | I79: 3.5
A80: E.5 - | B80: Quantidade de dias do contrato | H80: E.5 = | I80: 365
A81: E - | B81: Lubrificantes | C81: (E.1xE.3xE.4x30)/(E.2xE.5) | H81: E = | I81: =(I76*I78*I79*30)/(I77*I80) -> 43.5
A84: F - Pneus / Câmaras
A85: F.1 - | B85: Quantidades de pneus | H85: F.1 = | I85: 5
A86: F.2 - | B86: Vida do pneu em km | H86: F.2 = | I86: 30000
A87: F.3- | B87: Quilometragem do contrato | H87: F.3 = | I87: 36000
A88: F.4 - | B88: Preço do pneu | H88: F.4 = | I88: 319.9
A89: F.5 - | B89: Quantidade de dias do contrato | H89: F.5 = | I89: 365
A90: F - | B90: Pneus/Câmaras | C90: (F.1xF.3xF.4x30)/(F.2xF.5) | H90: F. = | I90: =(I85*I87*I88*30)/(I86*I89) -> 157.76
A93: G = Outros | H93: G =
A94: H = A + B + C + D + E + F + G | H94: H = | I94: =I57+I62+I66+I72+I81+I90+I93 -> 4439.1
A95: TOTAL GERAL COM BDI | C95: Fator/BDI | E95: 0 | I95: =I94*E95 -> 0
A97: I = Custo Direto por Km Rodado | E97: H/3000 | H97: I = | I97: =I95/I69 -> 0
A100: Composição dos Custos Para Moto Tipo Cross a partir 125 cc, 13 cv
A101: A - Depreciação Mensal do Equipamento / Veículo
A102: A.1 | B102: Preço de Aquisição | H102: A.1 = | I102: 16858
A103: A.2 | B103: Utilização Prevista (anos) | H103: A.2 = | I103: 3
A104: A.3 | B104: Recuperação de capital na venda do bem usado (%) | H104: A.3 = | I104: 0.4
A105: A.4 | B105: Custo Mensal | C105: A.1 - (A.3 x A.1)/A.2 | H105: A4 = | I105: =+((I102-(I102*I104))/(12*I103)) -> 280.97
A108: B - Juros pelo Capital Empregado
A109: B.1 | B109: Taxa mensal de juros (%) | H109: B.1 = | I109: =4.15/100/12 -> 0.0035
A110: B.2 | B110: Juros s/a depreciação / aluguel (B.1xA.4) | H110: B.2 = | I110: =I109*I105 -> 0.98
A112: C - Conservação e Manutenção
A113: C.1 | B113: Taxa de gastos sobre a deprec. Mensal inclusive seguros (%) | H113: C.1 = | I113: 0.67
A114: C.2 | B114: Incidência mensal ( C.1x A.4) | H114: C.2 = | I114: =I113*I105 -> 188.25
A115: Gastos Mensais e Operação do Equipamento / Veículo
A116: D - Combustível
A117: D - 1 | B117: Franquia mensal (km) por veículo | H117: D.1 = | I117: 2000
A118: D - 2 | B118: Preço litro de combustível | H118: D.2 = | I118: =I70 -> 6.87
A119: D - 3 | B119: Número km rodados c/ 1litro de combustível | H119: D.3 = | I119: 30
A120: D - | B120: Combustível | C120: (D.1/D.3) x D.2 | H120: D = | I120: =(I117/I119)*I118 -> 458
A123: E - Lubrificantes
A124: E.1 - | B124: Quilometragem do contrato | H124: E.1 = | I124: =I117*12 -> 24000
A125: E.2 - | B125: Franquia da troca de óleo (km) | H125: E.2 = | I125: 3000
A126: E.3 - | B126: Preço do litro de óleo | H126: E.3 = | I126: 21
A127: E.4 - | B127: Quantidade de litros de óleo por troca | H127: E.4 = | I127: 1
A128: E.5 - | B128: Quantidade de dias do contrato | H128: E.5 = | I128: 365
A129: E - | B129: Lubrificantes | C129: (E.1xE.3xE.4x30)/(E.2xE.5) | H129: E = | I129: =(I124*I126*I127*30)/(I125*I128) -> 13.81
A132: F - Pneus / Câmaras
A133: F.1 - | B133: Quantidades de pneus | H133: F.1 = | I133: 2
A134: F.2 - | B134: Vida do pneu em km | H134: F.2 = | I134: 15000
A135: F.3- | B135: Quilometragem do contrato | H135: F.3 = | I135: =I117*12 -> 24000
A136: F.4 - | B136: Preço do pneu | H136: F.4 = | I136: 173.71
A137: F.5 - | B137: Quantidade de dias do contrato | H137: F.5 = | I137: 365
A138: F - | B138: Pneus/Câmaras | C138: (F.1xF.3xF.4x30)/(F.2xF.5) | H138: F. = | I138: =(I133*I135*I136*30)/(I134*I137) -> 45.69
A141: G = Outros | H141: G =
A142: H = A + B + C + D + E + F + G | H142: H = | I142: =I105+I110+I114+I120+I129+I138+I141 -> 987.7
A143: TOTAL GERAL COM BDI | C143: Fator/BDI | E143: 0 | I143: =I142*E143 -> 0
A145: I = Custo Direto por Km Rodado | E145: H/4000 | H145: I = | I145: =I143/I117 -> 0

Sheet 13.2.1 Espec. veíc.
A1: PLANILHA DE ESPECIFICAÇÕES DE VEÍCULOS
A2: ITEM | B2: DESCRIÇÃO | C2: ESPECIFICAÇÕES
A3: 1 | B3: Automóvel | C3: a) Automóvel hatch, 4 portas, 5 passageiros, flex, 72 Cv
C4: b) altura livre mínima do solo de 170mm (veículo vazio, configuração original de fábrica, vedada adaptação);
C5: c) ar condicionado de fábrica
C6: d) trava elétrica nas 4 portas e alarme com acionamento por radio-frequência;
C7: e) pneus 175/70 Aro 14 ou com perfil mais alto;
C8: f) protetor de cárter
C9: g) veículo zero km
C10: h) ser produzido por fabricante que possua serviço autorizado no pólo Petrolina-Juazeiro
C11: i) todas as obrigações legais em dia (seguro obrigatório, IPVA, licenciamento)
C12: j) película protetora de vidros, mínimo G-20
A13: 2 | B13: Automóvel | C13: a) Automóvel Veículo utilitário 0,5 t.,1.4 flex Pick-up
C14: b) altura livre mínima do solo de 170mm (veículo vazio, configuração original de fábrica, vedada adaptação;
C15: c) ar condicionado de fábrica
C16: d) trava elétrica nas 4 portas e alarme com acionamento por radio-frequência;
C17: e) pneus 175/70 aro 14 ou com perfil mais alto;
C18: f) protetor de cárter
C19: g) veículo zero km
C20: h) ser produzido por fabricante que possua serviço autorizado no pólo Petrolina-Juazeiro
C21: i) todas as obrigações legais em dia (seguro obrigatório, IPVA, licenciamento)
C22: j) película protetora de vidros, mínimo G-20
A23: 4 | B23: Motocicleta | C23: Tipo "cross", zero km, mínimo 150 cilindradas, que posssua serviço autorizado no polo Juazeiro-Petrolina; todas as obrigações legais em dia(seguro obrigatório, IPVA, licenciamento);

Sheet 14.Quant Pess.
A1: QUANTITATIVO BÁSICO DE PESSOAL
A2: Item | B2: Atividades/Função | C2: PPBR | D2: PROD | E2: PGLO | F2: PJUS | G2: TOTAL
A5: ADMINISTRAÇÃO
A6: 1 | B6: Coordenador Geral | C6: 1 | G6: =C6 -> 1
A7: 2 | B7: Gerente Executivo | C7: 1 | D7: 1 | E7: 1 | G7: =SUM(C7:F7) -> 3
A8: 3 | B8: Técnico Agrícola Apoio à Produção | C8: 3 | D8: 2 | E8: 1 | F8: 1 | G8: =SUM(C8:F8) -> 7
A9: 4 | B9: Auxiliar Administrativo | C9: 1 | D9: 1 | E9: 1 | F9: 1 | G9: 4
A10: 5 | B10: Auxiliar de Serviços Gerais | C10: 1 | D10: 1 | E10: 1 | F10: 1 | G10: 4
A11: 6 | B11: Vigia | C11: 2 | D11: 2 | E11: 2 | F11: 2 | G11: 8
A12: Subtotal | C12: =SUM(C6:C11) -> 9 | D12: =SUM(D6:D11) -> 7 | E12: =SUM(E6:E11) -> 6 | F12: =SUM(F6:F11) -> 5 | G12: =SUM(G6:G11) -> 27
A13: OPERAÇÃO
A14: 7 | B14: Técnico Agrícola Coordenador de Operação | C14: 1 | D14: 1 | E14: 1 | F14: 1 | G14: =SUM(C14:F14) -> 4
A15: 8 | B15: Inspetor de Campo | C15: 2 | D15: 1 | E15: 1 | F15: 1 | G15: =SUM(C15:F15) -> 5
A16: =A15+1 -> 9 | B16: Operador de Bomba Sênior (diurno) | C16: 2 | D16: - | E16: - | F16: - | G16: 2
A17: =A16+1 -> 10 | B17: Operador de Bomba Sênior (noturno) | C17: 2 | D17: - | E17: - | F17: - | G17: 2
A18: =A17+1 -> 11 | B18: Operador de Bomba Junior (Diurno) | C18: 21 | D18: 7 | E18: 4 | F18: - | G18: 32
A19: =A18+1 -> 12 | B19: Operador de Casa de Bomba (Noturno) | C19: 7 | D19: 2 | E19: - | F19: 2 | G19: 11
A20: Subtotal | C20: =SUM(C14:C19) -> 35 | D20: =SUM(D14:D19) -> 11 | E20: =SUM(E14:E19) -> 6 | F20: =SUM(F14:F19) -> 4 | G20: =SUM(G14:G19) -> 56
A21: MANUTENÇÃO
A22: 13 | B22: Mecânico | C22: 1 | D22: 1 | E22: 1 | G22: =SUM(C22:F22) -> 3
A23: =A22+1 -> 14 | B23: Auxiliar de Mecânico | C23: 1 | D23: 1 | E23: 1 | G23: =SUM(C23:F23) -> 3
A24: =A23+1 -> 15 | B24: Técnico Eletrotécnico | C24: 1 | D24: 1 | G24: 2
A25: 16 | B25: Auxiliar de Eletricista | C25: 1 | D25: 1 | E25: 1 | G25: 3
A26: =A25+1 -> 17 | B26: Encanador | C26: 1 | D26: 1 | E26: 1 | G26: 3
A27: =A26+1 -> 18 | B27: Auxiliar de Encanador | C27: 3 | D27: 1 | E27: 1 | F27: 1 | G27: 6
A28: =A27+1 -> 19 | B28: Auxiliar de Serv Gerais | C28: 1 | D28: 1 | E28: 1 | F28: 1 | G28: 4
A29: Subtotal | C29: =SUM(C22:C28) -> 9 | D29: =SUM(D22:D28) -> 7 | E29: =SUM(E22:E28) -> 6 | F29: =SUM(F22:F28) -> 2 | G29: =SUM(G22:G28) -> 24
A30: Total | C30: =SUM(C12+C20+C29) -> 53 | D30: =SUM(D12+D20+D29) -> 25 | E30: =SUM(E12+E20+E29) -> 18 | F30: =SUM(F12+F20+F29) -> 11 | G30: =SUM(G12+G20+G29) -> 107

Sheet 15. Enc Soc
A1: B - PLANILHA DE ENCARGOS SOCIAIS
A4: A1 | B4: Previdência Social | J4: 20
A5: A2 | B5: Fundo de Garantia por Tempo de Serviço | J5: 8
A6: A3 | B6: Salário educação | J6: 2.5
A7: A4 | B7: Serviço Social da Indústria (SESI/SESC) | J7: 1.5
A8: A5 | B8: Serviço Nacional de Aprendizagem Industrial (SENAI/SENAC) | J8: 1
A9: A6 | B9: Serviço de Apoio a Pequena e Média Empresa (SEBRAE) | J9: 0.6
A10: A7 | B10: Instituto Nacional de Colonização e Reforma Agrária (INCRA) | J10: 0.2
A11: A8 | B11: Seguro contra acidentes de trabalho (INSS) | J11: 3
A12: A | B12: Total dos Encargos Sociais Básicos | J12: =SUM(J4:J11) -> 36.8
A14: B1 | B14: Férias + abono constitucional [1/3] | J14: 7.85
A15: B2 | B15: Auxílio enfermidade | J15: 0.66
A16: B3 | B16: Licença maternidade | J16: 0.02
A17: B4 | B17: Licença paternidade | J17: 0.06
A18: B5 | B18: Faltas legais | J18: 0.56
A19: B6 | B19: Acidente de trabalho | J19: 0.08
A20: B8 | B20: Décimo-terceiro salário | J20: 8.33
A21: B | B21: Total dos Encargos Sociais que recebem as incidências de A | J21: =SUM(J14:J20) -> 17.56
A22: C1 | B22: Avíso prévio (indenizado) | J22: 4.13
A23: B7 | B23: Aviso prévio trabalhado | J23: 0.1
A24: C2 | B24: Indenização Adicional | J24: 0.35
A25: C3 | B25: Férias Indenizadas | J25: 2.59
A26: C4 | B26: Depósito Rescisão sem Justa Causa | J26: 2.55
A27: C | B27: Total dos Encargos Sociais que não recebem as incidências de A | J27: =SUM(J22:J26) -> 9.72
A29: D1 | B29: Reincidência de A sobre B | J29: 6.46
A30: D2 | B30: Reincidência do Grupo A sobre o Aviso Prévio Trabalhado e Reincidência de FGTS exclusivo sobre o aviso prévio indenizado | J30: 0.37
A31: D | B31: Total das taxas das reincidências | J31: =SUM(J29:J30) -> 6.83
B33: Percentagem Total | J33: =SUM(J12,J21,J27,J31) -> 70.91
